Workbook

Sheet Introduction
H1: Version 2
B2: Tax Audit u/s 44AB - Documentation Template
B4: Brief Information about the Annexure:
B6: This Tax Audit Documentation template has been meticulously prepared to ensure uniform and consistent documentation across all relevant financial records. Designed to streamline the tax audit process, it facilitates accurate and comprehensive reporting by adhering to standardized formats. The template serves as a valuable tool for maintaining clarity and compliance, enabling small and medium CA firms to efficiently review and verify financial data. This structured approach not only enhances uniform documentation but also supports the broader objective of achieving accountability of each team member.
B9: Regards,
B10: By CA Abhishek S. Dhamne
B11: B. Com, FCA, DISA, Registered Valuer (SFA)
B12: Mobile : +91 9890 541 551
B13: Email : abhishekdhamne@ssdca.in
B16: Disclaimer: This tool has been developed by S. S. Dhamne & Co., Chartered Accountants, Pune to promote uniform documentation of audits conducted. While every effort has been made to ensure the accuracy of this tool, S. S. Dhamne & Co. assumes no responsibility for any missing information or inadvertent errors. For any suggestions, queries, or feedback, kindly email abhishekdhamne@ssdca.in.
B18: Date of Publishement: 24th August, 2024

Sheet Index
A1: ='Data Entry'!C10 -> PQR Pvt. Ltd.
A2: ="A.Y: "&'Data Entry'!C19 -> A.Y: 2024 - 25
A3: Tax Audit Index
A5: SI | B5: Particulars | E5: Applicability | F5: Status | G5: Prepared By | H5: Checked By
A6: 1 | B6: Data Entry | D6: Click here | E6: Mandatory | F6: Select | G6: CA Abhishek Dhamne | H6: CA Abhishek Dhamne
A7: =A6+1 -> 2 | B7: Audit Applicability | D7: Click here | E7: Mandatory | F7: Select
A8: 3 | B8: Appointment Letter | D8: Click here | E8: Mandatory | F8: Select
A9: 4 | B9: Engagement Letter | D9: Click here | E9: Mandatory | F9: Select
A10: 5 | B10: Audit Plan | D10: Click here | E10: Mandatory | F10: Select
A11: 6 | B11: Materiality | D11: Click here | E11: Mandatory | F11: Select
A12: 7 | B12: Tax Audit Annexure | E12: ='Audit Applicability'!E6 -> - | F12: Select
A13: SI | B13: Clause | C13: Particular | D13: Annexure | E13: Applicability | F13: Status | G13: Prepared By | H13: Checked By
A14: 7.01 | B14: 1 to 8 | C14: Form 3CD Part A - Assesses Details, Indirect Taxes and 44AB. | D14: A1 | E14: Select | F14: Select
A15: =A14+0.01 -> 7.02 | B15: 9 | C15: AOP or Firm - Details. | D15: A2 | E15: Select | F15: Select
A16: =A15+0.01 -> 7.03 | B16: 10 | C16: Nature of business or profession. | D16: A3 | E16: Select | F16: Select
A17: =A16+0.01 -> 7.04 | B17: 11 | C17: Details of Books Maintained; | D17: B | E17: Select | F17: Select
A18: 7.05 | B18: 12 | C18: Presumptive profits included in P& L a/c. | D18: - | E18: Select | F18: Select
A19: 7.06 | B19: 13 | C19: Method of Accounting and ICDS Disclosures . | D19: B | E19: Select | F19: Select
A20: 7.07 | B20: 14(a) | C20: Method of Valuation of Stock. | D20: B | E20: Select | F20: Select
A21: 7.08 | B21: 14(b) | C21: Effect of deviation from stock valuation method u/s 145A on net profit | D21: C | E21: Select | F21: Select
A22: 7.09 | B22: 15 | C22: Capital asset converted into stock-in-trade. | D22: - | E22: Select | F22: Select
A23: 7.1 | B23: 16 | C23: Amounts not credited to the profit and loss account. | D23: - | E23: Select | F23: Select
A24: 7.11 | B24: 17 | C24: Section 50C applicable cases - transfer of land/building. | D24: - | E24: Select | F24: Select
A25: 7.12 | B25: 18 | C25: Depreciation as per IT Act. | D25: D | E25: Select | F25: Select
A26: 7.13 | B26: 19 | C26: Amounts admissible u/s 33AB to 35E. | D26: - | E26: Select | F26: Select
A27: 7.14 | B27: 20 | C27: Bonus/commission otherwise payable as profit u/s 36(1)(ii) and Employees contributions to PF / other funds. | D27: E | E27: Select | F27: Select
A28: 7.15 | B28: 21 | C28: Debits to Profit and Loss Account & Amounts inadmissible under section 36, 40. | D28: F - I | E28: Select | F28: Select
A29: 7.16 | B29: 22 | C29: Amount inadmissible u/s 43B(h) & Interest disallowable u/s 23 of MSMED Act. | D29: J | E29: Select | F29: Select
A30: 7.17 | B30: 23 | C30: payments made to persons specified under section 40A(2)(b). | D30: - | E30: Select | F30: Select
A31: 7.18 | B31: 24 | C31: Deemed profits u/s 32AD to 33ABA. | D31: - | E31: Select | F31: Select
A32: 7.19 | B32: 25 | C32: Profits by recovery of earlier years loss u/s 41. | D32: - | E32: Select | F32: Select
A33: 7.2 | B33: 26 | C33: Sums referred to in section 43B and Indirect taxes. | D33: K | E33: Select | F33: Select
A34: 7.21 | B34: 27 | C34: ITC/CENVAT Credits and Prior Period items. | D34: K | E34: Select | F34: Select
A35: 7.22 | B35: 28 | C35: Property received without consideration or in adequate consideration u/s 56 (2)(viia). | D35: - | E35: Select | F35: Select
A36: 7.23 | B36: 29 | C36: Shares issued taxable u/s 56(2)(viib), advance received but forfeited u/s 56(2) (ix) & transactions without adequate consideration u/s 56(2)(x). | D36: - | E36: Select | F36: Select
A37: 7.24 | B37: 30 | C37: Amount borrowed/repaid on hundi other than account payee cheque - section 69D. | D37: - | E37: Select | F37: Select
A38: 7.25 | B38: 31 | C38: Particulars u/s 269SS, 269ST and 269T. | D38: L & M | E38: Select | F38: Select
A39: 7.26 | B39: 32 | C39: Brought forward loss or depreciation allowance, Change in shareholding so as to invoke section 79 and Speculation Loss - section 73. | D39: N | E39: Select | F39: Select
A40: 7.27 | B40: 33 | C40: Chapter VIA deductions. | D40: O | E40: Select | F40: Select
A41: 7.28 | B41: 34 | C41: TDS /TCS summary, delay in filing returns, interest liability. | D41: P | E41: Select | F41: Select
A42: 7.29 | B42: 35 | C42: Quantitative details of Traded Goods, Raw Material, Finished Goods and By Products. | D42: Q | E42: Select | F42: Select
A43: 7.3 | B43: 36 | C43: Dividends referred u/s 2(22)e. | D43: - | E43: Select | F43: Select
A44: 7.31 | B44: 37 | C44: Details of Cost audit. | D44: - | E44: Select | F44: Select
A45: 7.32 | B45: 38 | C45: Details of Audit conducted under Central Excise Act, 1944. | D45: - | E45: Select | F45: Select
A46: 7.33 | B46: 39 | C46: Details of Service Tax Audit conducted under Finance Act. | D46: - | E46: Select | F46: Select
A47: 7.34 | B47: 40 | C47: Accounting Ratios. | D47: R | E47: Select | F47: Select
A48: 7.35 | B48: 41 | C48: Indirect tax Demands /refunds. | D48: - | E48: Select | F48: Select
A49: 7.36 | B49: 42 | C49: Particulars of filing Form 61/ 61A/ 61B. | D49: - | E49: Select | F49: Select
A50: 7.37 | B50: 43 | C50: Report u/s 286(2) in respect of international group. | D50: - | E50: Select | F50: Select
A51: 7.38 | B51: 44 | C51: Break-up of expenditure under GST. | D51: S | E51: Select | F51: Select
A52: =A12+1 -> 8 | B52: Final Trial balance | D52: Click here | E52: Mandatory | F52: Select
A53: =A52+1 -> 9 | B53: Observation Sheet | D53: Click here | E53: Mandatory | F53: Select
A54: 10 | B54: Query Sheet | D54: Click here | E54: Mandatory | F54: Select
A55: 11 | B55: Cash verification Docket | D55: Click here | E55: Mandatory | F55: Select
A56: 12 | B56: Stock Verification Report | D56: Click here | E56: Mandatory | F56: Select
A57: 13 | B57: Cut-Off Procedure | D57: Click here | E57: Mandatory | F57: Select
A58: 14 | B58: DSC Authority Letter | D58: Click here | E58: Mandatory | F58: Select
A59: 15 | B59: Management Representation Letter | D59: Click here | E59: Mandatory | F59: Select
A60: 16 | B60: UDIN Checklist and Uploading Details | D60: Click here | E60: Mandatory | F60: Select
A62: Input Prepared By:_________ | E62: Reviewed By:___________
A63: Date:________ | E63: Date:________

Sheet Data Entry
A1: Back to Index
A2: Data Input Summary
A4: Sl | B4: Particular | C4: Details
A5: 1 | B5: Auditor's Firm Name: | C5: ABC & Co., Chartered Accountants
A6: =A5+1 -> 2 | B6: Auditor's Firm Address: | C6: 264, Parmar Chowk, Shukrawar Peth, Pune - 411002, Maharashtra, India.
A7: 3 | B7: Firm Registration No. | C7: 0111111W
A8: 4 | B8: Partner | C8: CA Abhishek Dhamne
A9: 5 | B9: Membership Number | C9: 012345
A10: 6 | B10: Name of the Client | C10: PQR Pvt. Ltd.
A11: 7 | B11: Address of the Client | C11: 10th Floor, Vincent Tower, F.C. Road, Shivajinagar, Pune - 411016, Maharashtra, India.
A12: 8 | B12: PAN of Assessee | C12: ABCDE1111F
A13: 9 | B13: TAN of Assessee | C13: PPPP11111G
A14: 10 | B14: Turnover of Assessee | C14: 50000000
A15: 11 | B15: Authorised Person | C15: Sanjay Veer Kashyap
A16: 12 | B16: Designation | C16: Director
A17: 13 | B17: Type of Assessee: | C17: 8. Private Company
A18: =A17+1 -> 14 | B18: Financial Year | C18: 2023 - 24
A19: 15 | B19: Assessment Year | C19: =LEFT(C18,4)+1&" - "&RIGHT(C18,2)+1 -> 2024 - 25
A21: Details of the Auditor's Team
A23: Sl. | B23: Name | C23: Designation | D23: Initial
A24: 1 | B24: =C8 -> CA Abhishek Dhamne | C24: =B8 -> Partner
A25: =A24+1 -> 2 | B25: B | C25: Manager
A26: =A25+1 -> 3 | B26: C | C26: Team Lead
A27: =A26+1 -> 4 | B27: D | C27: Audit Assistant
A28: 5 | B28: E | C28: Articled Assistant
A30: Details of the Auditee's Team
A32: Sl. | B32: Auditee Team Name | C32: Designation | D32: Initial
A33: 1 | B33: L | C33: CFO
A34: 2 | B34: M | C34: Manager
A35: 3 | B35: N | C35: Accountant
A36: 4 | B36: O | C36: Accountant
A39: Input Prepared By:_________ | C39: Partner In charge: ________________
A40: Date:________ | C40: Date:_______
A41: Initials: ___________________ | C41: Initials: ___________________
A43: Reviewed By:___________
A44: Date:________
A45: Initials: ___________________

Sheet Audit Applicability
A1: Back to Index
A2: ='Data Entry'!C10 -> PQR Pvt. Ltd.
A3: ="A.Y: "&'Data Entry'!C19 -> A.Y: 2024 - 25
A6: Tax Audit Applicability | E6: =IF(OR(AND('Data Entry'!C14>100000000,F14="Yes"),AND(F13="Yes",OR(F14="No",F14="Select")),F16="Yes",F17="Yes"),"Applicable",IF(OR(AND(E8="Business",F13="No"),AND(E8="Business",F13="Yes",F14="Yes",'Data Entry'!C14<=100000000),AND(E8="Profession",F16="No",F17="NO")),"Not Applicable","-")) -> -
A8: Whether Business or Profession: | E8: Select
A10: SI | B10: Conditions | F10: Answer
A11: Threshold limit for Tax Audit u/s 44AB of Income Tax Act is as follows :
A12: For Business:
A13: 1 | B13: Turnover of business > 1 Crore; | F13: =IF(AND('Data Entry'!C14>10000000,E8="Business"),"Yes","No") -> No
B14: Whether 95% of Receipt and Payments of the assessee are through bank Accounts | F14: Select
A15: For Profession: | G15: =IF(AND('Data Entry'!C14>10000000,E8="Business",F13="NA"),List,"") ->  | I15: List
A16: 1 | B16: Receipts form services rendered > 50 Lakhs; | F16: =IF(AND('Data Entry'!C14>5000000,E8="Profession"),"Yes","No") -> No | I16: Select
A17: 2 | B17: Receipts form services rendered < 50 Lakhs and Profit < 50%; | F17: Select | G17: =IF(AND('Data Entry'!C14<5000000,E8="Profession"),List,"") ->  | I17: Yes
I18: No
A22: Input Prepared By: _________ | D22: Reviewed By: ___________
A23: Date:________ | D23: Date: _______

Sheet Appointment Letter
A1: Back to Index
B3: ='Data Entry'!C10 -> PQR Pvt. Ltd.
B4: ='Data Entry'!C11 -> 10th Floor, Vincent Tower, F.C. Road, Shivajinagar, Pune - 411016, Maharashtra, India.
B6: Date:
B8: ='Data Entry'!C5 -> ABC & Co., Chartered Accountants
B9: ='Data Entry'!C6 -> 264, Parmar Chowk, Shukrawar Peth, Pune - 411002, Maharashtra, India.
B12: Subject: - Appointment as an Auditor u/s 44 AB of the Income Tax Act, 1961 for the
B13: ='Data Entry'!B18&" "&'Data Entry'!C18&" relevant to Assessment Year "&'Data Entry'!C19&"." -> Financial Year 2023 - 24 relevant to Assessment Year 2024 - 25.
B15: Dear Sir/Ma'am,
B17: We are pleased to inform you that the management, upon its meeting dated ________, has decided to appoint your [Name of the Auditor/Firm] as the Tax Auditor for [Client's Name] for the financial year [Insert Year]. This appointment is in accordance with the provisions of the Income Tax Act, 1961, and any other applicable laws.
B22: Being appointed as Tax Auditor for our organization, you will be responsible for conducting an audit of the entity's financial statements relevant to the compliance of all the applicable tax regulations. We expect the audit to be carried out in a professional manner, adhering to the highest standards of integrity and accuracy.
B27: The remuneration for the conduct of this audit will be Rs.________ /- (Rupees _____________ Only) in addition to travelling and out-of-pocket expenses. We now look forward for your continued co-operation and valued professional services.
B31: Kindly acknowledge the appointment letter along with your acceptance letter.
B34: Thanking You,
B36: Yours faithfully,
B37: ='Data Entry'!C10 -> PQR Pvt. Ltd.
B40: ='Data Entry'!C15 -> Sanjay Veer Kashyap
B41: ="("&'Data Entry'!C16&")" -> (Director)

Sheet Engagement Letter
A1: Back to Index
B3: ='Appointment Letter'!B3:I3 -> PQR Pvt. Ltd.
B4: ='Appointment Letter'!B4:I4 -> 10th Floor, Vincent Tower, F.C. Road, Shivajinagar, Pune - 411016, Maharashtra, India.
B6: Date:
B8: ='Data Entry'!C10 -> PQR Pvt. Ltd.
B9: ='Data Entry'!C11 -> 10th Floor, Vincent Tower, F.C. Road, Shivajinagar, Pune - 411016, Maharashtra, India.
B12: ="Subject: Tax Audit of "&'Data Entry'!C10&" for the "&'Data Entry'!B18&" "&'Data Entry'!C18&" relevant to Assessment" -> Subject: Tax Audit of PQR Pvt. Ltd. for the Financial Year 2023 - 24 relevant to Assessment
B13: ="Year "&'Data Entry'!C19&"." -> Year 2024 - 25.
B15: Dear Sir/Ma'am,
B17: We refer to your letter dated [letter dated] informing us about our appointment as the Tax Auditor of [Entity Name]. This Engagement Letter confirms the understanding of mutual responsibilities upon which [Firm Name] (Firm Registration Number -_______) has been engaged to perform the following services for the Entity.
B22: 1. Scope of Work
C24: You have requested that the Firm perform the work outlined below in relation to the Previous Year 2023-24 (Assessment Year 2024-25).
C27: 1.1 To issue an Audit Report in Form No. 3CA as specified under clause (a) of sub-rule (1) of Rule 6G and to certify the particulars stated in Form No. 3CD of the Entity for the Previous Year 2023-24(Assessment Year 2024-25) in accordance with section 44AB of the Income-tax Act, 1961 and Income-tax Rules, 1962 thereto.
C31: "OR"
C32: 1.1 To conduct audit of general-purpose financial statements, which includes balance sheet as on 31/03/2024 and the profit and loss account for the period beginning from 01/04/2023 to ending on 31/03/2024.
C36: 1.2 To issue an Audit Report in Form No. 3CB as specified under clause (b) of sub-rule (1) of Rule 6G and to certify the particulars stated in Form No. 3CD of the Entity for the Previous Year 2023-24 (Assessment Year 2024-25) in accordance with section 44AB of the Income-tax Act, 1961 and Income-tax Rules, 1962 thereto.
B41: 2. Auditor’s Responsibility
C43: 2.1 We will conduct our audit in accordance with the Standards on Auditing (‘SAs’), issued by the Institute of Chartered Accountants of India (‘ICAI’). Those standards require that we comply with ethical requirements and plan and perform the audit to obtain reasonable, rather than absolute, assurance about whether the particulars in Form No. 3CD are appropriate.
C49: 2.2 Because of the inherent limitations of an audit, including the possibility of collusion or improper Management override of controls, there is an unavoidable risk that material misstatements due to fraud or error may occur and not be detected, even though the audit is properly planned and performed in accordance with the SAs.
C55: 2.3 The audit shall be carried out in accordance with auditing standards generally accepted in India which includes an examination of evidence on a test check basis and having regard to the materiality of the items involved. Materiality is assessed based on both quantitative and qualitative factors.
C60: 2.4 In specific circumstances, when necessary to obtain specialized knowledge or expertise beyond accounting or auditing, we may engage an expert to assist us in the audit process. In such cases we will be relying upon the work performed by the expert (as stated under SA 620 - “Using the work of an Auditor’s Expert”). The expert appointed by us will work under our direction and supervision and we will remain responsible for the audit opinion expressed.
C67: 2.5 The Tax Audit for the Previous Year 2023-24 (Assessment Year 2024-24) will be carried out in accordance with the provisions of section 44AB of the Income-tax Act, 1961 and the Income-tax Rules, 1962 of India, the Guidance Note on Tax Audit under section 44AB of the Income-tax Act, 1961 issued by the ICAI and any other notifications issued by Central Board of Direct Taxes / Ministry of Finance with the objective of expressing an opinion in Form No. 3CA “OR” Form No. 3CB on the correctness of particulars given in Form No. 3CD.
C75: 2.6 Pursuant to the ICAI requirements, we are required to update certain relevant details of the operations of the Entity on the Unique Document Identification Number (UDIN) Portal of the ICAI for generating the UDIN, which is required to be stated on the reports issued by us.
B80: 3. Management’s Responsibility
C82: 3.1 Our audit will be conducted on the basis that Management and, where appropriate, those charged with governance (Owners / Partners) (‘Management’), acknowledge and understand that they have responsibility:
C86: a) For the preparation and fair presentation of the Financial Statements along with adequate disclosures in accordance with applicable financial reporting framework and generally accepted accounting principles. This includes:
D90: i. Compliance with the applicable provisions of the applicable laws;
D92: ii. Proper maintenance of accounts and other matters connected therewith;
D94: iii. The preparation of the Financial Statements in accordance with, the applicable accounting standards and providing proper explanation relating to any material departures from those accounting standards;
D98: iv. Selection of accounting policies and applying them consistently and making judgments and estimates that are reasonable and prudent so as to give a true and fair view of the state of affairs of the Entity at the end of the financial year and of the profit and loss of the Entity for that period;
D103: v. Taking proper and sufficient care for the maintenance of adequate accounting records in accordance with the provisions of the applicable laws for safeguarding the assets of the Entity and for preventing and detecting fraud and other irregularities;
D108: vi. Laying down internal financial controls to be followed by the Entity and that such internal financial controls are adequate and operating effectively;
D111: vii. Devising proper systems to ensure compliance with the provisions of all applicable laws and that such systems were adequate and operating effectively;
D114: viii. Assessing the Entity’s ability to continue as a going concern, disclosing, as applicable, matters related to going concern and using the going concern basis of accounting for the preparation of the Financial Statements; and
D118: ix. Fulfilment of its responsibility for the preparation and accurate presentation of the particulars as required under Form No. 3CD.
C121: b) To provide us, inter alia, with:
D123: i. Access, at all times, to all information including the books, accounts, vouchers, other records including digital records and documentation of the Entity, that is relevant to the preparation of the Financial Statements and for the verification of the particulars stated in Form No. 3CD such as records, documentation and other matters including books of account maintained in electronic mode;
D129: ii. All information, such as records and documentation, and other matters that are relevant to our assessment of internal financial controls with reference to Financial Statements;
D133: iii. Management’s evaluation and assessment of the adequacy and effectiveness of the Entity's internal financial controls with reference to Financial Statements, based on the control criteria as defined under the applicable law and all deficiencies, significant deficiencies and material weaknesses in the design or operations of internal financial controls with reference to Financial Statements identified as part of Management’s evaluation;
D140: iv. Additional information that we may request from Management for the purpose of the audit;
D143: v. Unrestricted access to persons within the Entity from whom we determine it necessary to obtain audit evidence. This includes our entitlement to require from the officers of the Entity such information and explanations as we may think necessary for the performance of our duties as the auditors of the Entity;
D149: vi. All the internal audit reports covering the period up to the end of the financial year under audit prior to finalising our audit report; and
D152: vii. Information of significant changes in the design or operation of the Entity’s internal financial controls that occurred during or subsequent to the date being reported on, including proposed changes being considered.
C156: c) For making judgments and estimates that are reasonable and prudent so as to give a true and fair view of the state of affairs of the Entity at the end of the financial year and of the profit and loss of the Entity for the period.
C160: 3.2 The Management understands and acknowledges that the electronic transmission of information via the internet or otherwise, has inherent risks. Unless otherwise agreed, despite the inherent risks, the management authorises us to communicate electronically with all the concerned parties on all matters related to the engagement.
C165: 3.3 We will make specific inquiries of Management about the representations contained in the Financial Statements. At the conclusion of the engagement, we will also obtain written representations from Management about these matters, and that Management:
D170: (a) has fulfilled its responsibility for the preparation and accurate presentation of the Financial Statements in accordance with the Companies (Accounting Standards) Rules, 2006 or applicable financial reporting framework and that all transactions have been recorded and are reflected in the Financial Statements;
D176: (b) has provided us with all relevant information and access as contemplated in this Agreement; and
D179: (c) understands the importance of the said written Management’s representations for an effective audit, and hence the Entity agrees to release us and our personnel from any liability and costs relating to the Services attributable to any misrepresentations by Management.
C184: 3.4 The responses to those inquiries, the written representations, and the results of our procedures comprise evidence on which we will rely in forming an opinion on the Financial Statements. Management is responsible for setting up mechanism to identify and address any non-compliance or suspected non-compliance with laws and regulations applicable to the Entity and shall ensure that the relevant information and/or updates in regard to such non-compliance or suspected non-compliance is provided to us on timely basis.
C192: 3.5 In case where auditor has been provided with documents containing digital signatures embedded therein, Management states that they have adopted sufficient safeguards to prevent any unauthorised access or misuse of the digital signature, including implementing robust security measures, regular monitoring to prevent any misuse of the digital signature, placing relevant security controls, integrity checks and other necessary controls on, using documents embedded with digital signatures.
C200: 3.6 The Entity consents for use, maintenance and where necessary, transfer of the data and information provided or made available by the Entity (including personal information) and represents that it has the lawful right to provide the same to us. The Entity agrees that on request, it will promptly provide us with supporting documents to corroborate the foregoing.
C206: In case where the auditor has been provided with documents and/ or information in digital format, whether obtained / prepared / extracted from Entity’s Information Technology system or from any other sources in any mode including but not limited to Excel/Word/PDF/Zip files etc., the Management acknowledges its responsibility with respect to reliability and integrity of such information.
C210: In case where the auditor has been provided with documents and/ or information in digital format, whether obtained / prepared / extracted from Entity’s Information Technology system or from any other sources in any mode including but not limited to Excel/Word/PDF/Zip files etc., the Management acknowledges its responsibility with respect to reliability and integrity of such information.
B212: 4. Matters to be Communicated to Those Charged with Governance
C214: In accordance with the Standards on Auditing, we will communicate certain matters related to the conduct and results of the audit to you. Such matters include, but may not be limited to, the following:
C218: 4.1 Significant findings from the audit including our views about the significant qualitative aspects of the accounting practices, including accounting policies, accounting estimates, Financial Statements disclosures and other matters that are in our professional judgment, significant and relevant to the Management regarding the oversight of the financial reporting process, including significant matters in connection with the Entity’s related parties; and
C225: 4.2 Written representations requested from the Management and significant matters, if any, arising from the audit that were discussed, or the subject of correspondence, with the Management.
B229: 5. Working Papers
C231: The working papers, files and other electronic documents prepared in connection with our audits are the property of our Firm, constitute confidential information and will be retained by us in accordance with Firm’s policies and procedures. However, we hereby acknowledge that the details or data received from you for the preparation of these working papers are confidential information of the Entity and will not be disclosed by us to any third party, except as set out in para below or when required by legislation, without the prior consent from the Entity.
B239: 6. Confidentiality of Information
C241: We will conduct our audit in accordance with the confidentiality requirements prescribed under the Code of Ethics of the ICAI which requires that the Entity’s information acquired by us under the course of our audit is subject to strict confidentiality. In connection with this engagement, we may access and acquire confidential and other sensitive information (‘confidential information’). We shall adhere to the confidentiality restrictions of the regulatory authorities that govern us, as well as any obligations imposed on us by any applicable laws. The information relating to you, our relationship with you, and to this engagement, including confidential information, may be accessed by other parties who facilitate the administration of our Services or support our infrastructure. We shall remain responsible for preserving confidentiality if confidential information is shared with or accessed by such other parties. We may remove, or arrange for the removal of, names and any other identifiers from confidential information and then use such anonymised information for lawful purposes chosen at our discretion (including UDIN). This clause shall not prohibit our disclosure of confidential information, in confidence, to our professional indemnity insurers or advisers or our disclosure otherwise permitted under this Engagement Letter. This clause shall not apply where confidential information properly enters the public domain or no longer remains confidential without our default.
C261: We also wish to invite your attention to the fact that our audit process is subject to internal quality reviews / Peer Review / Quality Review / any other Regulatory Review under the Chartered Accountants Act, 1949 or any other law for the time being in force. The reviewer(s) may inspect, examine or take abstracts of our working papers during the course of such review. The reviewer(s) shall be bound by similar confidentiality obligation as stated above.
B268: 7. Independence
C270: In connection with our engagement, the Management will assume certain roles and responsibilities in an effort to assist us in maintaining independence ensuring compliance with the applicable independence requirements and will ensure that the Entity, together with its related entities, has policies and procedures in place for the purpose of ensuring that neither the Entity nor any of its related entities will act to engage us or accept from us any Service that has not been subjected to the pre-approval process, where required, or that would impair our independence.
C278: In connection with the foregoing, the Entity agrees to furnish and keep us updated with respect to an Entity’s group structure that identifies the legal names of the Entity’s related entities.
C282: We will communicate to our employees and partners that the Entity is an audit client.
C284: The Management will coordinate with us to ensure that our independence is not impaired by hiring former or current partners or professional employees who were part of the audit engagement team for certain positions. The Management of the Entity will ensure that the Entity, together with its related entities, also has policies and procedures in place for the purposes of ensuring that our independence will not be impaired by hiring a former or current partner or professional employee as officer; or an employee in a position to exert significant influence over the preparation of the Entity’s accounting records or the Financial Statements that would cause a violation of independence requirements. Any employment opportunities with the Entity for a former or current partner or professional employees who were part of the audit engagement team should be discussed with us before entering into substantive employment conversations with such former or current partner or professional employee.
C298: The Management will coordinate with us to ensure that our independence is not impaired by appointing relative of the Firm’s partner as Partner / Key Managerial Personnel or in any other capacity which could lead to impairment of independence. Any of the stated opportunities with the Entity for a relative of the Firm’s partner should be discussed with us before entering into substantive conversations with the relative of the Firm’s partner.
B305: 8. Limitation of Damages
C307: Nothing in this Engagement Letter shall exclude or restrict or prevent a claim being brought in respect of: (i) any liability finally judicially determined to arise primarily from the fraud or bad faith by us as auditor; or (ii) any other liabilities which cannot lawfully be limited or excluded, save to the extent permitted by law.
C312: The Entity agrees that the auditor shall not be liable to the Entity for any losses for an aggregate amount in excess of the fees paid by the Entity to the auditor under the Agreement.
C316: We will not be liable for losses arising as a result of the provision of false, misleading or incomplete information or documentation or the withholding or concealment or misrepresentation of information or documentation by any person or the Entity.
B321: 9. Indemnification
C323: The Entity, by executing this Agreement, agrees to indemnify and hold us harmless from all third-party claims, damages, liabilities and costs, during or after the period of rendering the Services covered under this Agreement, other than those resulting from our wilful misconduct or negligence.
B328: 10. Fees
C330: 10.1 Our fees for the Services defined under Scope of Work of this Engagement will be INR [INR] exclusive of Goods and Services Tax (‘GST’).
C333: 10.2 GST and other statutory liabilities, as applicable will be charged separately. Our bills are payable promptly on presentation.
C336: 10.3 Our direct out-of-pocket expenses which are necessarily incurred while engaged on this assignment will be billed to you at cost and are to be reimbursed by the Entity. Out-of-pocket expenses include conveyance, external disbursements, outstation travel, lodging and boarding, etc.
B341: 11. Invoicing
C343: 11.1 Invoices for expenses shall be provided as soon as possible after they have been incurred. Invoices for professional services rendered will be sent after the completion of Services or on progressive basis. Payment of the invoiced amount may be made by direct transfer into our bank account, the details of which will be made available.
C349: 11.2 Unless specifically waived, interest will be charged on all amounts outstanding, beyond 30 days from the invoice date. The Entity acknowledges and accepts that the Firm may suspend the provision of the services until such time that all amounts due are paid in full.
B354: 12. Governing Law, Jurisdiction & Dispute Resolution
C356: This Agreement, and any non-contractual obligations arising out of this Agreement or the Services, shall be governed by, and construed in accordance with, the laws of India.
C360: 12.1 If a dispute arises, the parties will attempt to resolve it by discussion and negotiation before commencing legal proceedings.
C363: 12.2 All disputes or differences, arising out of the Agreement shall be deemed to have arisen at a place where the head office of the auditor is situated and only courts having jurisdiction over the place where head office of the auditor is situated shall determine the same.
B368: 13. Anti-Money Laundering & Prevention of Corruption
C370: Each party shall comply with applicable policies, laws and regulations relating to Anti-Money Laundering and Prevention of Corruption activities.
B373: 14. Entire Agreement
C375: This Agreement sets out the entire Agreement and understanding between the Parties in connection with the Engagement. Any modifications or variations to the Agreement must be in writing and signed by an authorised representative of each party.
B379: 15. End-Use
C381: The audit report and the opinion is solely for the purpose of the subject matter specified in Scope of Work clause of this Engagement Letter.
C384: If you intend to publish or otherwise reproduce the opinion or otherwise make reference to our firm in a document that contains other information, you agree to provide us with a draft of the document to read and obtain our approval for inclusion of our report, before it is printed and distributed.
C389: You are responsible for such documents and our responsibility is restricted only to the documents that have been issued under our name.
B392: 16. Termination of Agreement
C394: Either of the parties to this Agreement may terminate the Agreement by providing 30 days written notice to the other party in case of a material breach by the other party which does not remedy the breach within 5 business days upon receipt of a notice. In these circumstances, the Firm shall be entitled to raise an invoice in respect of fees on the basis of the time spent at agreed hourly rates, up to the amount of the fixed fee (if applicable), and out-of-pocket expenses incurred till such notice of termination is communicated. The Firm shall be entitled to terminate this Agreement in the event of changes to laws, regulations, or the shareholding / group structure that would render such services illegal or in conflict with independence or professional rules.
C399: If these arrangements are acceptable, please sign one copy of this letter and return it to us.
C401: We very much appreciate the opportunity to serve you and would be pleased to furnish any additional information you may request concerning our responsibilities and functions.
C405: We trust that our association will be a long and mutually beneficial one. We look forward to working with you.
B408: Yours faithfully,
B410: ="For "&'Data Entry'!C5&", " -> For ABC & Co., Chartered Accountants,
B413: ='Data Entry'!C8 -> CA Abhishek Dhamne
B414: ="("&'Data Entry'!B8&")" -> (Partner)

Sheet Audit Plan
A1: Back to Index
A2: Audit Plan
A4: Name of the Client | B4: ='Data Entry'!C10 -> PQR Pvt. Ltd.
A5: Audit period | B5: ='Data Entry'!B19&": "&'Data Entry'!C19 -> Assessment Year: 2024 - 25
A6: Audit commenced on
A7: Audit Coordinator
A8: Audit Team | B8: ='Data Entry'!B24 -> CA Abhishek Dhamne
B9: ='Data Entry'!B25 -> B
B10: ='Data Entry'!B26 -> C
B11: ='Data Entry'!B27 -> D
B12: ='Data Entry'!B28 -> E
A13: Total Days Planned for Audit
A14: Total Man-days
A15: Scope of work | B15: Date | C15: Team Member | D15: Remarks
A16: Opening Balance Verification
A17: Cash Book Vouching
A18: Bank Book Vouching
A19: Sales Vouching
A20: Purchase Vouching
A21: Journal Register Vouching
A22: Debit Note/ Credit Note Vouching
A23: Cash Verification
A24: Inventory Verification
A25: Bank Reconciliation
A26: Fixed Assets and Depreciation
A27: Verification of Statutory Payments
A28: Reconciliations of Statutory Payments
A29: Debtors Confirmations
A30: Creditors Confirmations
A31: Ledger Scrutiny
A32: Finalisation Activities
A34: Remarks: -
A37: Input Prepared By:_________ | C37: Reviewed By:___________
A38: Date:________ | C38: Date:________

Sheet Materiality
A1: Back to Index
A2: ='Data Entry'!C10 -> PQR Pvt. Ltd.
A3: ="A.Y: "&'Data Entry'!C19 -> A.Y: 2024 - 25
A5: A) | B5: Materiality :
A7: SI | B7: Particulars | C7: Amount (Rs.) | D7: Planning Materiality (%) | E7: Planning Materiality (Rs.) | F7: Performance Materiality (%) | G7: Performance Materiality (Rs.) | H7: Clearly Trivial Threshold (%) | I7: Clearly Trivial Threshold (Rs.)
A8: 1 | B8: On the basis of Revenue (Net) | C8: 100000 | D8: 0.1 | E8: =C8*D8 -> 10000 | F8: 0.7 | G8: =E8*F8 -> 7000 | H8: 0.05 | I8: =H8*E8 -> 500
A9: 2 | B9: On the basis of Assets (PPE) | C9: 100000 | D9: 0.3 | E9: =C9*D9 -> 30000 | F9: 0.7 | G9: =E9*F9 -> 21000 | H9: 0.05 | I9: =H9*E9 -> 1500
A10: 3 | B10: On the basis of Profit before Tax | C10: 10000 | D10: 0.1 | E10: =C10*D10 -> 1000 | F10: 0.7 | G10: 700 | H10: 0.05 | I10: 50
A12: Comparative Trend | F12: Amount in Rs.
A13: SI | B13: Particulars | C13: A | D13: B | E13: C | F13: Total | G13: Average
C14: FY 2023-24 | D14: FY 2022-23 | E14: FY 2021-22
A15: 1 | B15: Revenue from operations | C15: 100 | D15: 80 | E15: 70 | F15: =SUM(C15:E15) -> 250 | G15: =AVERAGE(C15:E15) -> 83.33333333
A16: 2 | B16: Variance | C16: =C15-D15 -> 20 | D16: =D15-E15 -> 10 | E16: 0 | F16: =SUM(C16:E16) -> 30 | G16: 10
A17: 3 | B17: Profit/(Loss) Before Tax | C17: 10 | D17: 8 | E17: 7 | F17: 25 | G17: 8.333333333
A18: 4 | B18: Variance | C18: =C17-D17 -> 2 | D18: =D17-E17 -> 1 | E18: 0 | F18: 3 | G18: 1
A19: 5 | B19: Property, Plant and Equipment | C19: 6 | D19: 4 | E19: 5 | F19: 15 | G19: 5
A20: 6 | B20: Variance | C20: =C19-D19 -> 2 | D20: =D19-E19 -> -1 | E20: 0 | F20: 1 | G20: 0.3333333333
A22: Percentage change in variance
A23: Particulars | C23: =C14 -> FY 2023-24 | D23: FY 2022-23 | E23: FY 2021-22
A24: Revenue from operations | C24: 100 | D24: 80 | E24: 70
A25: % change | C25: =(C24-D24)/D24 -> 0.25 | D25: =(D24-E24)/E24 -> 0.1428571429 | E25: 0
A26: Profit/(Loss) Before Tax | C26: =C17 -> 10 | D26: =D17 -> 8 | E26: =E17 -> 7
A27: % change | C27: =(C26-D26)/D26 -> 0.25 | D27: =(D26-E26)/E26 -> 0.1428571429 | E27: 0
A28: Property, Plant and Equipment | C28: =C19 -> 6 | D28: =D19 -> 4 | E28: =E19 -> 5
A29: % change | C29: =(C28-D28)/D28 -> 0.5 | D29: =(D28-E28)/E28 -> -0.2 | E29: 0
A31: B) | B31: Extent:
A33: SI | B33: Audit Areas | C33: Branch/Unit | D33: Total Number of Transactions | E33: Total Value | F33: No. of Samples selected | G33: Value of Samples selected | H33: % Considered
A34: 1 | B34: Revenue form Operations | C34: Pune | D34: 10 | E34: 1000 | F34: 8 | G34: 700 | H34: =G34/E34 -> 0.7
A35: =A34+1 -> 2 | B35: Other Incomes | H35: =G35/E35 -> 
A36: =A35+1 -> 3 | B36: Purchases
A37: 4 | B37: Direct Expenses
A38: 5 | B38: Indirect Expenses
A39: 6 | B39: Others as required;
A40: =A39+1 -> 7 | B40: Others as required; | H40: =G40/E40 -> 
A41: 8 | B41: Others as required;
A42: 9 | B42: Others as required;
A43: 10 | B43: Others as required;
A44: 11 | B44: Others as required;
A45: 12 | B45: Others as required; | H45: =G45/E45 -> 
A46: 13 | B46: Others as required;
A47: 14 | B47: Others as required;
A48: 15 | B48: Others as required;
A54: Input Prepared By:_________ | E54: Reviewed By:___________
A55: Date:________ | E55: Date:________

Sheet A
A1: Back to Index
A2: ='Data Entry'!C10 -> PQR Pvt. Ltd.
A3: ="A.Y: "&'Data Entry'!C19 -> A.Y: 2024 - 25
A4: Annexure 'A' of Form 3CD
A5: PART - 1
A6: [Refer Clause 1 to 8 of Form 3CD]
A8: SI | B8: Particulars | D8: Inputs
A9: 1 | B9: Name of the assessee | D9: ='Data Entry'!C10 -> PQR Pvt. Ltd.
A10: 2 | B10: Address | D10: ='Data Entry'!C11 -> 10th Floor, Vincent Tower, F.C. Road, Shivajinagar, Pune - 411016, Maharashtra, India.
A11: 3 | B11: Permanent Account Number | D11: ='Data Entry'!C12 -> ABCDE1111F
A12: 4 | B12: Status | D12: ='Data Entry'!C17 -> 8. Private Company
A13: 5 | B13: Previous Year ended | D13: ='Data Entry'!C18 -> 2023 - 24
A14: 6 | B14: Assessment Year | D14: ='Data Entry'!C19 -> 2024 - 25
A15: 7 | B15: Whether the assessee is liable to pay indirect tax? | D15: Select
A16: 8 | B16: Registration No.
A18: PART - 2
A19: [Refer Clause 9 (a) of Form 3CD]
A20: AOP or Firm - Details.
A22: SI | B22: Name | D22: Profit Sharing Ratio
A23: 1
A24: 2
A25: 3
A26: 4
A28: [Refer Clause 9 (b) of Form 3CD]
A29: change in the partners or members or in their profit sharing ratio
A31: SI | B31: Date of Change | C31: Name of Partner/ Member | D31: Type of change | E31: Old profit sharing ratio (%) | F31: New profit Sharing Ratio (%) | G31: Remarks
A32: 1
A33: =A32+1 -> 2
A34: =A33+1 -> 3
A35: =A34+1 -> 4
A37: PART - 3
A38: [Refer Clause 10 of Form 3CD]
A39: Nature of business or profession
A41: Nature of Business :
A42: Code:
A44: Input Prepared By:_________ | D44: Reviewed By:___________
A45: Date:________ | D45: Date:________

Sheet B
A1: Back to Index
A2: ='Data Entry'!C10 -> PQR Pvt. Ltd.
A3: ="A.Y: "&'Data Entry'!C19 -> A.Y: 2024 - 25
A4: Annexure 'B' of Form 3CD
A5: [Refer Clause 11 (b) and 11 (c) of Form 3CD]
A6: Books of Accounts Maintained and Examined
A8: List of Books of Accounts maintained and examined
A9: SI | B9: Particular
A10: a) | B10: Petty Cash Book
A11: b) | B11: Bank Book
A12: c) | B12: General Ledger
A13: e) | B13: Debtor's Ledger
A14: f) | B14: Creditor's Ledger
A15: g) | B15: Journal Register
A16: h) | B16: Purchase Register
A17: i) | B17: Sales Register
A18: j) | B18: Inventory Records
A19: k) | B19: Credit Note Register
A20: l) | B20: Debit Note Register
A21: m) | B21: Others if any
A24: Books of accounts are maintained in a computer system using ________ software application.
A27: Annexure 'B' of Form 3CD
A28: [Refer Clause 14(a) of Form 3CD]
A29: Method of Valuation of Closing Stock
A31: Inventories are valued as follows
A32: SI | B32: Particular | D32: Method of Valuation
A33: a) | B33: Raw Materials | C33: : | D33: At Cost plus Inwards expenses
A34: b) | B34: Semi Finished / Finished Goods | C34: : | D34: At Cost or Market Price whichever is lower
A35: c) | B35: Consumables and Stores | C35: : | D35: At Cost
A37: Annexure 'B' of Form 3CD
A38: ICDS Disclosures
A39: [Refer Clause 13(f) of Form 3CD]
A41: SI | B41: Particular | D41: Disclosures
A42: a) | B42: ICDS I - Accounting Policies | C42: : | D42: Accounts are prepared on Mercantile system of accounting. Considering the materiality concept no provisions for unpaid expenses and prepaid expenses, for small amount is made. The accounts has been prepared using historical cost convention and on the basis of going concern, with revenue recognized and expenses accounted on accrual basis. Accounting policies not referred to otherwise are consistent with generally accepted accounting principles.
A43: b) | B43: ICSD II - Valuation of Inventories | C43: : | D43: Stores, Materials and Finished Goods are stated at lower of Cost or Net Realizable Value is the estimated selling price in the ordinary course of business less estimated selling expenses. The cost includes expenditure in acquiring the inventories and bringing them to the present location and conditions. FIFO method of valuation is being followed. Raw Material are valued at cost plus inward expenses.
A44: c | B44: ICDS III - Construction Contracts | C44: : | D44: Contract Revenue and Costs are to be recognized on the basis of percentage of completion. Where the contract revenue cannot be estimated reliably, revenue is recognized to the extent of cost incurred.
A45: d | B45: ICDS IV - Revenue Recognition | C45: : | D45: Revenue from sale of goods is recognised on transfer of significant risks and rewards of ownership when goods are dispatched and the title passes to the customers, net of discounts and rebates granted. Revenue from services is recognized when related services are performed. Interest is recognized as income when such income is receivable.
A46: e | B46: ICDS V - Tangible Fixed Assets | C46: : | D46: Fixed assets are stated at cost of acquisition less accumulated depreciation. The cost comprises of the purchase price and the attributable cost of bringing the asset to its working condition for intended use. Expenses include Inward freight, duties, taxes and other directly attributable expenses. Depreciation on fixed assets is provided on the Straight Line Method pro-rata to the period of use. Capital work-in-progress includes the cost of fixed assets that are not ready for intended use at the Balance Sheet date and advances paid to acquire capital assets before the Balance Sheet date.
A47: f | B47: ICDS VI - The Effect of Changes in Foreign Exchange Rates | D47: Transactions denominated in foreign currency are recorded at rates that approximate the exchange rate prevailing on the date of the respective transaction. The disclosure regarding payment in foreign currency is being stated in Notes to Accounts.
A48: g | B48: ICDS VII - Governments Grants | C48: : | D48: Grants and Subsidies from the Government are recognised when there reasonable assurance that i) the Company will comply with the conditions attached to them, and ii) the grant or subsidy will be received. Where the Grant relates to an Asset, it is deducted from the cost of the Asset. Depreciation provided till the date is reversed and to that extent income is recognised.
A49: h | B49: ICDS VIII - Securities | C49: : | D49: The company does not hold securities as stock in trade hence ICDS does not apply.
A50: i | B50: ICDS IX - Borrowing Costs | C50: : | D50: Borrowing costs includes interest cost on funds borrowed in relation to make the Plant and Machinery ready to use and such interest cost is directly attributable to the period till which the plant and machinery is ready to use shall form part of the cost of such Plant and Machinery, i.e. capitalized to such Asset.
A51: j | B51: ICDS X - Provisions, Contingent Liabilities and Contingent Assets | C51: : | D51: Provision is recognised in the Balance Sheet when, the Company has a present obligation as a result of a past event; it is probable that an outflow of economic benefits will be required to settle the present obligation and a reliable estimate of the amount of the obligation can be made. A disclosure by way of a contingent liability is made when there is a possible obligation or a present obligation that may, but probably will not, require an outflow of resources. There is a possible obligation or a present obligation that the likelihood of outflow of resources is remote, no provision or disclosure is made.
A54: Input Prepared By:_________ | D54: Reviewed By:___________
A55: Date:________ | D55: Date:________

Sheet C
A1: Back to Index
A2: =B!A2 -> PQR Pvt. Ltd.
A3: =B!A3 -> A.Y: 2024 - 25
A4: Annexure 'C' of Form 3CD
A5: [Refer Clause14(b) and 26(B)(b) of Form 3CD]
A6: Details of Computation of Profit u/s 145A
A8: SI | B8: Particulars | D8: Amount (Rs.)
B11: Profit / (Loss) as per Profit & Loss A/c on the basis of Exclusive Method | D11: 0
B13: Adjustments required under Section 145A
B15: Add:
A16: 1 | B16: Goods and Service Tax on Sales and Closing Stock | D16: 0
D18: =SUM(D16:D17) -> 0
B20: Less:
A21: 1 | B21: Goods and Service Tax Credit Receivables (Input) A/c | D21: 0
A22: 2 | B22: Excess GST Paid | D22: 0
A23: 3 | B23: Disallowance under Section 43 B
A24: i | B24: GST on Sales & Closing Stock unpaid on/before the due date of filling of the Return | D24: =K!G13 -> 0
D26: =SUM(D21:D25) -> 0
B28: Profit / (Loss) as per Profit & Loss A/c on the basis of Inclusive Method | D28: =D11+D18-D26 -> 0
A31: Note:
A32: The increase in Profit calculated above has been considered for disallowances under section 43 B. Hence, No Impact is considered under section 145 A.
A35: Note : The assessee follows exclusive method of valuation, no requirement of clause 14(b)
A37: Requirement of this clause: When the assessee is following the inclusive method of valuation
A39: Section 145A follows the inclusive method, i.e., any tax, duty, cess or fee actually paid or incurred on inputs should be added to the cost of inputs (raw materials, stores etc.), and if paid or incurred on the sale of goods, it should be added to the sales if not already added in the books of account. Any tax, duty, cess or fee actually paid or incurred on the inventory (finished goods, work-in-progress, raw materials, etc.) should be added to the inventories, if not already added while valuing the inventory in the accounts.
A47: Input Prepared By:_________ | C47: Reviewed By:___________
A48: Date:________ | C48: Date:________

Sheet D
A1: Back to Index
A2: =B!A2 -> PQR Pvt. Ltd.
A3: =B!A3 -> A.Y: 2024 - 25
A4: [Refer Clause 18(a) of Form 3CD]
A5: Annexure 'D' of Form 3CD
A6: Statement Showing Depreciation admissible as per Income Tax Act, 1961
A8: Sl. | B8: Block of assets | C8: Rate | D8: WDV on the First day of previous year | E8: Additions More than 180 days | F8: Sale consi deration or other realisation during the year | G8: (4) + (5) – (6) | H8: Additions Less than 180 days | I8: Dep reciation on (7) | J8: Dep reciation on (8) | K8: Initial depreciation, if any, on (5) and (8) | L8: Total Dep reciation (9) + (10) | M8: Closing WDV
A9: 1 | B9: 2 | C9: 3 | D9: 4 | E9: 5 | F9: 6 | G9: 7 | H9: 8 | I9: 9 | J9: 10 | K9: 11 | L9: 12 | M9: 13
A11: 1 | B11: Buildings | C11: 0.1 | D11: 0 | E11: 0 | F11: 0 | G11: =D11+E11-F11 -> 0 | H11: 0 | I11: =G11*C11 -> 0 | J11: =(H11*C11)/2 -> 0 | K11: 0 | L11: =((+I11+J11+K11)) -> 0 | M11: =G11+H11-L11 -> 0
A12: =A11+1 -> 2 | B12: Furniture & Fittings | C12: 0.1 | D12: 0 | E12: 0 | F12: 0 | G12: =D12+E12-F12 -> 0 | H12: 0 | I12: =G12*C12 -> 0 | J12: =(H12*C12)/2 -> 0 | K12: 0 | L12: =((+I12+J12+K12)) -> 0 | M12: =G12+H12-L12 -> 0
A13: =A12+1 -> 3 | B13: Plant and Machinery | C13: 0.15 | D13: 0 | E13: 0 | F13: 0 | G13: =D13+E13-F13 -> 0 | H13: 0 | I13: =G13*C13 -> 0 | J13: =(H13*C13)/2 -> 0 | K13: 0 | L13: =((+I13+J13+K13)) -> 0 | M13: =G13+H13-L13 -> 0
A14: 4 | B14: Computers & Software | C14: 0.4 | D14: 0 | E14: 0 | F14: 0 | G14: =D14+E14-F14 -> 0 | H14: 0 | I14: =G14*C14 -> 0 | J14: =(H14*C14)/2 -> 0 | K14: 0 | L14: =((+I14+J14+K14)) -> 0 | M14: =G14+H14-L14 -> 0
A15: 5 | D15: 0 | E15: 0 | F15: 0 | G15: 0 | H15: 0 | I15: 0 | J15: 0 | K15: 0 | L15: 0 | M15: 0
A16: 6 | D16: 0 | E16: 0 | F16: 0 | G16: 0 | H16: 0 | I16: 0 | J16: 0 | K16: 0 | L16: 0 | M16: 0
A17: 7 | D17: 0 | E17: 0 | F17: 0 | G17: 0 | H17: 0 | I17: 0 | J17: 0 | K17: 0 | L17: 0 | M17: 0
A18: 8 | D18: 0 | E18: 0 | F18: 0 | G18: 0 | H18: 0 | I18: 0 | J18: 0 | K18: 0 | L18: 0 | M18: 0
A19: 9 | D19: 0 | E19: 0 | F19: 0 | G19: 0 | H19: 0 | I19: 0 | J19: 0 | K19: 0 | L19: 0 | M19: 0
B20: GRAND TOTAL | D20: =SUM(D11:D19) -> 0 | E20: 0 | F20: 0 | G20: 0 | H20: 0 | I20: 0 | J20: 0 | K20: 0 | L20: 0 | M20: 0
L21: Total of Column of (5) and (8) above | M21: =E20+H20 -> 0
L22: Total of Column (12) above | M22: =L20 -> 0
A27: Input Prepared By:_________ | H27: Reviewed By:___________
A28: Date:________ | H28: Date:________

Sheet EFG
A1: Back to Index
A2: =B!A2 -> PQR Pvt. Ltd.
A3: =B!A3 -> A.Y: 2024 - 25
A4: Annexure 'E' of Form 3CD
A5: [Refer Clause 20(b) and 21(h)(i) of Form 3CD]
A7: Statement showing details of Employees Contribution to Provident Fund
A8: Month | B8: Employees Contribution Collected (Amount Rs.) | C8: Employees Contribution Paid (Amount Rs.) | D8: Due Date | E8: Payment Date | F8: Delay in Days | G8: Disallowed Employees Contribution (Amount Rs.) | H8: Disallowed Employer's Contribution (Amount Rs.)
A9: 2023-04-01 | D9: 2023-05-15 | E9: 2023-05-15 | F9: =IF((E9-D9)<0,0,E9-D9) -> 0 | G9: =IF(F9>0,B9,B9-C9) -> 0 | H9: 0
A10: 2023-05-01 | D10: 2023-06-15 | E10: 2023-06-15 | F10: =IF((E10-D10)<0,0,E10-D10) -> 0 | G10: =IF(F10>0,B10,B10-C10) -> 0 | H10: 0
A11: 2023-06-01 | D11: 2023-07-15 | E11: 2023-07-15 | F11: 0 | G11: 0 | H11: 0
A12: 2023-07-01 | D12: 2023-08-15 | E12: 2023-08-15 | F12: 0 | G12: 0 | H12: 0
A13: 2023-08-01 | D13: 2023-09-15 | E13: 2023-09-15 | F13: 0 | G13: 0 | H13: 0
A14: 2023-09-01 | D14: 2023-10-15 | E14: 2023-10-15 | F14: 0 | G14: 0 | H14: 0
A15: 2023-10-01 | D15: 2023-11-15 | E15: 2023-11-15 | F15: 0 | G15: 0 | H15: 0
A16: 2023-11-01 | D16: 2023-12-15 | E16: 2023-12-15 | F16: 0 | G16: 0 | H16: 0
A17: 2023-12-01 | D17: 2024-01-15 | E17: 2024-01-15 | F17: 0 | G17: 0 | H17: 0
A18: 2024-01-01 | D18: 2024-02-15 | E18: 2024-02-15 | F18: 0 | G18: 0 | H18: 0
A19: 2024-02-01 | D19: 2024-03-15 | E19: 2024-03-15 | F19: 0 | G19: 0 | H19: 0
A20: 2024-03-01 | D20: 2024-04-15 | E20: 2024-04-15 | F20: 0 | G20: 0 | H20: 0
A21: Total Amount | B21: =SUM(B9:B20) -> 0 | C21: =SUM(C9:C20) -> 0
A22: Total Amount Disallowed | G22: =SUM(G9:G20) -> 0 | H22: =SUM(H9:H20) -> 0
A25: Statement showing details of Employees State Insurance Corporation Fund
A27: Month | B27: Employees Contribution Collected (Amount Rs.) | C27: Employees Contribution Paid (Amount Rs.) | D27: Due Date | E27: Payment Date | F27: Delay in Days | G27: Disallowed Employees Contribution (Amount Rs.) | H27: Disallowed Employer's Contribution (Amount Rs.)
A28: 2023-04-01 | D28: 2023-05-15 | E28: 2023-05-15 | F28: =IF((E28-D28)<0,0,E28-D28) -> 0 | G28: =IF(F28>0,B28,IF((B28-C28)<0,0,(B28-C28))) -> 0 | H28: 0
A29: 2023-05-01 | D29: 2023-06-15 | E29: 2023-06-15 | F29: =IF((E29-D29)<0,0,E29-D29) -> 0 | G29: =IF(F29>0,B29,IF((B29-C29)<0,0,(B29-C29))) -> 0 | H29: 0
A30: 2023-06-01 | D30: 2023-07-15 | E30: 2023-07-15 | F30: 0 | G30: 0 | H30: 0
A31: 2023-07-01 | D31: 2023-08-15 | E31: 2023-08-15 | F31: 0 | G31: 0 | H31: 0
A32: 2023-07-01 | D32: 2023-08-15 | E32: 2023-08-15 | F32: 0 | G32: 0 | H32: 0
A33: 2023-08-01 | D33: 2023-09-15 | E33: 2023-09-15 | F33: 0 | G33: 0 | H33: 0
A34: 2023-09-01 | D34: 2023-10-15 | E34: 2023-10-15 | F34: 0 | G34: 0 | H34: 0
A35: 2023-10-01 | D35: 2023-11-15 | E35: 2023-11-15 | F35: 0 | G35: 0 | H35: 0
A36: 2023-11-01 | D36: 2023-12-15 | E36: 2023-12-15 | F36: 0 | G36: 0 | H36: 0
A37: 2023-12-01 | D37: 2024-01-15 | E37: 2024-01-15 | F37: 0 | G37: 0 | H37: 0
A38: 2024-01-01 | D38: 2024-02-15 | E38: 2024-02-15 | F38: 0 | G38: 0 | H38: 0
A39: 2024-02-01 | D39: 2024-03-15 | E39: 2024-03-15 | F39: 0 | G39: 0 | H39: 0
A40: 2024-03-01 | D40: 2024-04-15 | E40: 2024-04-15 | F40: 0 | G40: 0 | H40: 0
A41: Total Amount | B41: =SUM(B28:B40) -> 0 | C41: =SUM(C28:C40) -> 0 | G41: =SUM(G28:G40) -> 0 | H41: =SUM(H28:H40) -> 0
A43: Statement showing details of Maharashtra Labour Welfare Fund / Any Other
A45: Period | B45: Employees Contribution Collected (Amount Rs.) | C45: Employees Contribution Paid (Amount Rs.) | D45: Due Date | E45: Payment Date | F45: Delay in Days | G45: Disallowed Employees Contribution (Amount Rs.) | H45: Disallowed Employer's Contribution (Amount Rs.)
A47: 2023-06-01 | D47: 2023-07-15 | E47: 2023-07-15 | F47: =IF((E47-D47)>0,E47-D47,0) -> 0 | G47: =IF(E47-D47>0,B47,B47-C47) -> 0 | H47: 0
A48: 2023-12-01 | D48: 2024-01-15 | E48: 2024-01-15 | F48: =IF((E48-D48)>0,E48-D48,0) -> 0 | G48: =IF(E48-D48>0,B48,B48-C48) -> 0 | H48: 0
A51: Annexure 'F' of Form 3CD
A52: [Refer Clause 21(a) of Form 3CD]
A53: Personal Expenditure
A54: Based on our Audit and according to information and explanation, No personal expenses of employees or directors have been charged to revenue account, other than that payable under contractual obligation or incurred in accordance with generally accepted business practices.
A57: Annexure 'G' of Form 3CD
A58: [Refer Clause 21(a) and clause 41 of Form 3CD]
A59: Penalties and Fines Payable
A61: Sr. No | B61: Particulars | E61: Paid to | H61: Amount (Rs.)
A62: 1
A63: 2
A64: 3
A65: Total | H65: =+SUM(H62:H62) -> 0
A67: Penalties or fines payable pursuant to a contractual obligation are considered not to be covered come in the ambit of this clause.
A71: Input Prepared By:_________ | E71: Reviewed By:___________
A72: Date:________ | E72: Date:________

Sheet HI
A1: Back to Index
A2: =B!A2 -> PQR Pvt. Ltd.
A3: =B!A3 -> A.Y: 2024 - 25
A4: Annexure 'H' of Form 3CD
A5: [Refer Clause 21 (i)(A), 21(i)(B), 21(i)(C) of Form 3CD]
A7: i | B7: Tax deductible and not deducted at all
A8: Sl. | B8: Head of Accounts | C8: Party | D8: Section | E8: Amount (Rs.) | F8: Date of payment or Credit | G8: Rate | H8: Amount of TDS | I8: Amount Disallowed u/s 40(a) (ia)
A14: Total Amount Disallowed | I14: =SUM(I9:I13) -> 0
A16: ii | B16: Shortfall on account of lesser deduction than required to be deducted
A17: Sl. | B17: Head of Accounts | C17: Party | D17: Section | E17: Amount (Rs.) | F17: Date of payment or Credit | G17: Rate | H17: Amount of TDS | I17: Amount Disallowed u/s 40(a) (ia)
A23: Total Amount Disallowed | I23: =SUM(I18:I22) -> 0
A25: iii | B25: Tax deducted late
A26: Sl. | B26: Head of Accounts | C26: Party | D26: Section | E26: Amount (Rs.) | F26: Date of payment or Credit | G26: Rate | H26: Amount of TDS | I26: Amount Disallowed u/s 40(a) (ia)
A32: Total Amount Disallowed | I32: =SUM(I27:I31) -> 0
A34: iv | B34: Tax deducted but not paid to the credit of the Central Government
A35: Sl. | B35: Head of Accounts | C35: Party | D35: Section | E35: Amount (Rs.) | F35: Date of payment or Credit | G35: Rate | H35: Amount of TDS | I35: Amount Disallowed u/s 40(a) (ia)
A41: Total Amount Disallowed | I41: =SUM(I36:I40) -> 0
B43: Note:
B44: We have verified the details required to be furnished under this clause in accordance with the methodology suggested under paras 33.3, 33.4, 33.5 and 50.2 of the “Guidance Note on Tax Audit under section 44AB of the Income Tax Act, 1961” (Revised 2005 Edition and Supplementary Guidance Note issued in September 2006) issued by the ICAI. Accordingly, in view of the voluminous nature of the transactions, we have verified on test basis that tax has been deducted and remitted to the Government as required under Chapter XVII-B of the Income Tax Act 1961. The instances of non-compliance are given vide in the above Annexures.
A50: Annexure 'I' of Form 3CD
A51: Part - 1
A52: [Refer Clause 21(d)(A) and 21(d)(B) of Form 3CD]
A53: Cash Payment above Rs. 10000
A54: Sl. | B54: Date | C54: Particulars | H54: Voucher No. | I54: Amount in Rs.
A62: Part - 2
A63: [Refer Clause 21(g) of Form 3 CD]
A65: i | B65: Liabilities neither provided for Claims against the Company nor acknowledged as debts:
B67: SI | C67: Particulars of Liability | F67: As at 2024, March 31
B68: a) | C68: Bank Guarantee
B69: b)
B70: c)
B71: d)
B73: Future cash outflows in respect of (a) above are determinable only on receipt of judgements /decisions pending with various forums / authorities.
A80: Input Prepared By:_________ | F80: Reviewed By:___________
A81: Date:________ | F81: Date:________

Sheet J
A1: Back to Index
A2: =B!A2 -> PQR Pvt. Ltd.
A3: =B!A3 -> A.Y: 2024 - 25
A4: Annexure 'J' of Form 3CD
A5: [Refer Clause 22 of Form 3 CD]
A7: SI | B7: Particulars | H7: Amount in Rs.
A8: 1 | B8: Amount of interest inadmissible under section 23 of the MSMED Act, 2006.
A9: 2 | B9: Amount inadmissible u/s 43B(h)
A15: Input Prepared By:_________ | F15: Reviewed By:___________
A16: Date:________ | F16: Date:________
A18: ** "For calculation of Interest and Amount inadmissible u/s 23 and 43B(h) of MSMED Act, 2006" Download the utility for "Section 43B(h) - Reporting Tool" from the link given below;
A20: https://www.abhishekdhamne.com/professional-tools/

Sheet K
A1: Back to Index
A2: =B!A2 -> PQR Pvt. Ltd.
A3: =B!A3 -> A.Y: 2024 - 25
A4: Annexure 'K' of Form 3CD
A5: [ Refer Clause 21 (e) and 26 (A) of Form 3 CD]
A7: Particulars of Expenditure under Clause (a),(c),(d),(e) and (f) of Section 43B
A9: Nature of Liability | B9: Opening Unpaid amount | C9: Amount Incurred during the year | D9: Amount paid before the due date of filling return | E9: Payment made / written back in the PY (allowed on payment basis) | F9: Amount Disallowed (unpaid amount) | G9: Amount unpaid on the date of filling return
A11: For the FY 2023-24
A13: Goods and Service Tax | B13: 0 | C13: 0 | D13: 0 | E13: 0 | F13: 0 | G13: =B13+C13-E13-D13 -> 0
A15: Interest | B15: 0 | C15: 0 | D15: 0 | E15: 0 | F15: 0 | G15: =B15+C15-E15-D15 -> 0
A17: Gratuity | B17: 0 | C17: 0 | D17: 0 | E17: 0 | F17: 0 | G17: =B17+C17-E17-D17 -> 0
A19: Leave Encashment | B19: 0 | C19: 0 | D19: 0 | E19: 0 | F19: =C19-E19 -> 0 | G19: =B19+C19-E19-D19 -> 0
A21: Total (A) | B21: =SUM(B12:B20) -> 0 | C21: =SUM(C12:C20) -> 0 | D21: 0 | E21: 0 | F21: 0 | G21: 0
A23: Annexure 'K-I' of Form 3CD
A24: [ Refer Clause 27(a) of Form 3 CD]
A25: Amount of Central Value Added Tax credits availed of or utilized during the previous year and its treatment in the profit and loss account and treatment of outstanding Modified Value Added Tax credits in the accounts.
A27: Nature of Liability | C27: Opening Balance | D27: CENVAT/ITC Availed | E27: CENVAT/ITC Utilised | F27: Closing/ outstanding balance | G27: Treatment in Profit & Loss Account
A28: For the FY 2023-24
A29: ITC | C29: 0 | D29: 0 | E29: 0 | F29: =C29+D29-E29 -> 0
C30: 0 | D30: 0 | E30: 0 | F30: =C30+D30-E30 -> 0
A31: Total (A) | C31: =SUM(C29:C30) -> 0 | D31: =SUM(D29:D30) -> 0 | E31: =SUM(E29:E30) -> 0 | F31: =SUM(F29:F30) -> 0
A34: Input Prepared By:_________ | E34: Reviewed By:___________
A35: Date:________ | E35: Date:________

Sheet L
A1: Back to Index
A2: =B!A2 -> PQR Pvt. Ltd.
A3: =+B!A3 -> A.Y: 2024 - 25 | K3: Take data from Related Party summary from Notes to accounts (P&L) items only
A4: Annexure 'L' of Form 3CD
A5: [Refer Clause 23]
A6: Details of Payments made to Persons specified u/s 40A(2)(b) | H6: TRANSACTIONS
A7: Sl | B7: Name of the Person | C7: PAN | D7: Status | E7: Designation and Relation | F7: Nature of Payment | G7: Opening | H7: Debit | I7: Credit | J7: Closing
A8: 1 | J8: =G8+H8-I8 -> 0 | K8: =H8-I8 -> 0 | L8: =G8+H8-I8 -> 0
A9: =A8+1 -> 2 | J9: 0 | K9: =H9-I9 -> 0 | L9: 0
A10: =A9+1 -> 3 | J10: 0 | K10: =H10-I10 -> 0 | L10: 0
A11: 4 | J11: 0 | K11: =H11-I11 -> 0 | L11: 0
A12: 5 | J12: 0 | K12: =H12-I12 -> 0 | L12: 0
A13: 6 | J13: 0 | K13: =H13-I13 -> 0 | L13: 0
A14: 7 | J14: 0 | K14: 0 | L14: 0
A15: 8 | J15: 0 | K15: 0 | L15: 0
A16: 9 | J16: 0 | K16: 0 | L16: 0
A17: 10 | J17: =G17+H17-I17 -> 0 | K17: =H17-I17 -> 0 | L17: 0
A18: 11 | J18: 0 | K18: =H18-I18 -> 0 | L18: =G18+H18-I18 -> 0
A19: 12 | J19: 0 | K19: 0 | L19: 0
A20: 13 | J20: 0 | K20: 0 | L20: 0
A21: 14 | J21: 0 | K21: 0 | L21: 0
A22: 15 | J22: 0 | K22: 0 | L22: 0
A23: =A22+1 -> 16 | J23: 0 | K23: 0 | L23: 0
A24: 17 | J24: 0 | K24: 0 | L24: 0
A25: 18 | J25: 0 | K25: 0 | L25: 0
A26: 19 | J26: 0 | K26: 0 | L26: 0
A27: 20 | J27: 0 | K27: 0 | L27: 0
A28: GRAND TOTAL | G28: =SUM(G8:G27) -> 0 | H28: =SUM(H8:H22) -> 0 | I28: =SUM(I8:I22) -> 0 | J28: =SUM(J8:J22) -> 0
A31: Input Prepared By:_________ | F31: Reviewed By:___________
A32: Date:________ | F32: Date:________

Sheet M
A1: Back to Index
A2: =B!A2 -> PQR Pvt. Ltd.
A3: =+B!A3 -> A.Y: 2024 - 25
A4: Annexure 'M' of Form 3CD
A5: [Refer Clause 31 (a)]
A6: Details of Loan or Deposits Taken or Accepted (Security Deposits)
A8: SI | B8: Name | C8: Address | D8: PAN | E8: Op. Bal. (Rs.) | F8: Amount or loan or deposit taken or accepted (Rs.) | G8: Amount of Repayment (Rs.) | H8: Closing Balances (Rs.) | I8: Mode of Acceptance | J8: Whether A/c was squared up during P.Y. | K8: Maximum amount outs tanding (Rs.)
A9: 1 | H9: =E9+F9-G9 -> 0 | J9: =IF(H9=0,"Yes","No") -> Yes | K9: =MAX(F9,G9,H9,E9) -> 0
A10: =A9+1 -> 2 | H10: =E10+F10-G10 -> 0 | J10: =IF(H10=0,"Yes","No") -> Yes | K10: =MAX(F10,G10,H10,E10) -> 0
A11: =A10+1 -> 3 | H11: 0 | J11: Yes | K11: =MAX(F11,G11,H11,E11) -> 0
A12: 4 | H12: 0 | J12: Yes | K12: =MAX(F12,G12,H12,E12) -> 0
A13: 5 | H13: =E13+F13-G13 -> 0 | J13: =IF(H13=0,"Yes","No") -> Yes | K13: =MAX(F13,G13,H13,E13) -> 0
A14: 6 | H14: 0 | J14: Yes | K14: 0
A15: 7 | H15: 0 | J15: Yes | K15: 0
A16: 8 | H16: 0 | J16: Yes | K16: 0
A17: 9 | H17: 0 | J17: Yes | K17: 0
A18: 10 | H18: 0 | J18: Yes | K18: 0
A19: 11 | H19: 0 | J19: Yes | K19: 0
A20: 12 | H20: 0 | J20: Yes | K20: 0
A21: 13 | H21: 0 | J21: Yes | K21: 0
A22: 14 | H22: =E22+F22-G22 -> 0 | J22: =IF(H22=0,"Yes","No") -> Yes | K22: 0
A23: 15 | H23: 0 | J23: Yes | K23: 0
A24: 16 | H24: 0 | J24: Yes | K24: 0
A25: 17 | H25: 0 | J25: Yes | K25: 0
A26: 18 | H26: 0 | J26: Yes | K26: 0
A27: 19 | H27: 0 | J27: Yes | K27: 0
A28: 20 | H28: 0 | J28: Yes | K28: 0
A29: 21 | H29: 0 | J29: Yes | K29: 0
A30: 22 | H30: 0 | J30: Yes | K30: 0
A31: Total | E31: =SUM(E9:E30) -> 0 | F31: =SUM(F9:F30) -> 0 | G31: =SUM(G9:G30) -> 0 | H31: =SUM(H9:H30) -> 0 | K31: 0
A36: Input Prepared By:_________ | G36: Reviewed By:___________
A37: Date:________ | G37: Date:________

Sheet N
A1: Back to Index
A2: =B!A2 -> PQR Pvt. Ltd.
A3: =B!A3 -> A.Y: 2024 - 25
A4: Annexure 'N'
A5: [Refer Clause '32 (a) ' of form 3CD]
A6: Detail of bought forward losses or depreciation allowance in the following manner to the extent available
A8: SI | B8: Assessment Year | C8: Nature of loss/ allowance | D8: Amount Returned as (in Rs.) | E8: Amount assessed as | F8: DIN | G8: Order Date
A9: 1
A10: 2
A11: 3
A12: 4
A13: 5
A14: 6
A15: 7
A16: 8
A21: Input Prepared By:_________ | E21: Reviewed By:___________
A22: Date:________ | E22: Date:________

Sheet O
A1: Back to Index
A2: =B!A2 -> PQR Pvt. Ltd.
A3: =B!A3 -> A.Y: 2024 - 25
A4: Annexure 'O' of Form 3CD
A5: [Refer Clause 33 of Form 3CD]
A7: i | B7: Details of deductions admissible under Chapter VIA
A8: Sl. | B8: Amount of Donation | C8: Amount admissible | D8: Donation paid to | E8: PAN | F8: Under Section | G8: Registration No. issued by the National Committee
A9: 1
A10: 2
A11: 3
A12: 4
A13: 5
A14: 6
A19: Input Prepared By:_________ | F19: Reviewed By:___________
A20: Date:________ | F20: Date:________

Sheet P
A1: Back to Index
A2: =O!A2 -> PQR Pvt. Ltd.
A3: =+A!A3:G3 -> A.Y: 2024 - 25
A4: Annexure P
A5: [Refer Clause 34(a) of Form 3CD]
A7: SI | B7: Tax Deduction and collection Account Number | C7: Section | D7: Nature Of Payment | E7: Total amount of payment or receipt of the nature specified in column | F7: Total amount on which Tax was required to be deducted or collected out of (4) | G7: Total amount on which tax was deducted or collected at specified rate out of (5) | H7: Amount of Tax Deducted/ collected out of (6) | I7: Total amount on which tax was deducted or collected at less than specified rate out of (7) | J7: Amount of tax deducted or collected on (8) | K7: Amount of tax deducted or collected not deposited to the credit of the Central Government out of (6) and (8)
B9: 1 | C9: 2 | D9: 3 | E9: 4 | F9: 5 | G9: 6 | H9: 7 | I9: 8 | J9: 9 | K9: 10
A10: 1
A11: =A10+1 -> 2
A12: =A11+1 -> 3
A13: 4
A14: 5
A15: 6
A16: 7
A17: 8
A18: 9
A19: 10
A20: 11
A21: 12
A22: 13
A23: 14
A24: 15
D25: Grand Total | E25: =SUM(E10:E24) -> 0 | F25: =SUM(F10:F24) -> 0 | G25: 0 | H25: 0 | I25: 0 | J25: 0 | K25: 0
A28: Input Prepared By:_________ | G28: Reviewed By:___________
A29: Date:________ | G29: Date:________

Sheet P-1
A1: Back to Index
A2: =B!A2 -> PQR Pvt. Ltd.
A3: =B!A3 -> A.Y: 2024 - 25
A4: Annexure P1
A5: [Refer Clause 34 (b) of Form 3CD]
A7: SI | B7: Tax deduction and collection Account Number (TAN) * | C7: Type of Form * | D7: Quarter | E7: Due date for furnishing * (dd/mm/yyyy) | F7: Date of furnishing, if furnished * (dd/mm/yyyy) | G7: Whether the statement of tax deducted or collected contains information about all transactions which are required to be reported *
A8: 1 | B8: ='Data Entry'!$C$13 -> PPPP11111G
A9: =A8+1 -> 2 | B9: ='Data Entry'!$C$13 -> PPPP11111G
A10: =A9+1 -> 3 | B10: ='Data Entry'!$C$13 -> PPPP11111G
A11: 4 | B11: ='Data Entry'!$C$13 -> PPPP11111G
A12: 5 | B12: ='Data Entry'!$C$13 -> PPPP11111G
A13: 6 | B13: ='Data Entry'!$C$13 -> PPPP11111G
A14: 7 | B14: ='Data Entry'!$C$13 -> PPPP11111G
A15: 8 | B15: ='Data Entry'!$C$13 -> PPPP11111G
A16: 9 | B16: ='Data Entry'!$C$13 -> PPPP11111G
A17: 10 | B17: ='Data Entry'!$C$13 -> PPPP11111G
A18: 11 | B18: ='Data Entry'!$C$13 -> PPPP11111G
A19: 12 | B19: ='Data Entry'!$C$13 -> PPPP11111G
A20: 13 | B20: ='Data Entry'!$C$13 -> PPPP11111G
A21: 14 | B21: ='Data Entry'!$C$13 -> PPPP11111G
A22: 15 | B22: ='Data Entry'!$C$13 -> PPPP11111G
A23: 16 | B23: ='Data Entry'!$C$13 -> PPPP11111G
A24: =A23+1 -> 17 | B24: ='Data Entry'!$C$13 -> PPPP11111G
A25: 18 | B25: ='Data Entry'!$C$13 -> PPPP11111G
A26: 19 | B26: ='Data Entry'!$C$13 -> PPPP11111G
A27: 20 | B27: ='Data Entry'!$C$13 -> PPPP11111G
A28: =A27+1 -> 21 | B28: ='Data Entry'!$C$13 -> PPPP11111G
A30: Input Prepared By:_________ | E30: Reviewed By:___________
A31: Date:________ | E31: Date:________

Sheet P-2
A1: Back to Index
A2: =B!A2 -> PQR Pvt. Ltd.
A3: =B!A3 -> A.Y: 2024 - 25
A4: Annexure 'P-2'
A5: [Refer Clause 34 (c) of Form 3CD]
A7: SI | B7: Tax deduction and collection Account Number (TAN) * | C7: Amount of interest under section 201(1A)/206C(7) is payable * | D7: Amount paid out of column (2) * | E7: Date of Payment * (dd/mm/yyyy)
A8: 1 | B8: ='Data Entry'!$C$13 -> PPPP11111G
A9: =A8+1 -> 2 | B9: ='Data Entry'!$C$13 -> PPPP11111G
A10: =A9+1 -> 3 | B10: ='Data Entry'!$C$13 -> PPPP11111G
A11: 4 | B11: ='Data Entry'!$C$13 -> PPPP11111G
A12: 5 | B12: ='Data Entry'!$C$13 -> PPPP11111G
A13: 6 | B13: ='Data Entry'!$C$13 -> PPPP11111G
A14: 7 | B14: ='Data Entry'!$C$13 -> PPPP11111G
A15: 8 | B15: ='Data Entry'!$C$13 -> PPPP11111G
A16: 9 | B16: ='Data Entry'!$C$13 -> PPPP11111G
A17: 10 | B17: ='Data Entry'!$C$13 -> PPPP11111G
A18: 11 | B18: ='Data Entry'!$C$13 -> PPPP11111G
A19: 12 | B19: ='Data Entry'!$C$13 -> PPPP11111G
A20: 13 | B20: ='Data Entry'!$C$13 -> PPPP11111G
A21: 14 | B21: ='Data Entry'!$C$13 -> PPPP11111G
A22: 15 | B22: ='Data Entry'!$C$13 -> PPPP11111G
A23: 16 | B23: ='Data Entry'!$C$13 -> PPPP11111G
A24: 17 | B24: ='Data Entry'!$C$13 -> PPPP11111G
A25: 18 | B25: ='Data Entry'!$C$13 -> PPPP11111G
A26: 19 | B26: ='Data Entry'!$C$13 -> PPPP11111G
A27: 20 | B27: ='Data Entry'!$C$13 -> PPPP11111G
A28: 21 | B28: ='Data Entry'!$C$13 -> PPPP11111G
A29: Total | C29: =SUM(C8:C28) -> 0 | D29: =SUM(D8:D28) -> 0
A38: Input Prepared By:_________ | D38: Reviewed By:___________
A39: Date:________ | D39: Date:________

Sheet Q
A1: Back to Index
A2: =B!A2 -> PQR Pvt. Ltd.
A3: =B!A3 -> A.Y: 2024 - 25
A4: Annexure 'Q' Of Form 3CD
A5: [Refer Clause 35(a) of Form 3CD]
A8: Particulars | B8: Opening Balance | E8: Inwards | H8: Outwards | K8: Closing Balance | N8: Diff
B9: Quantity | C9: Rate | D9: Value | E9: Quantity | F9: Rate | G9: Value | H9: Quantity | I9: Rate | J9: Value | K9: Quantity | L9: Rate | M9: Value
N10: =M10+J10-G10-D10 -> 0
N11: =M11+J11-G11-D11 -> 0
N12: 0
N13: 0
N14: 0
N15: 0
N16: 0
N17: 0
N18: 0
N19: 0
A20: Grand Total | B20: =SUM(B10:B19) -> 0 | D20: =SUM(D10:D19) -> 0 | E20: =SUM(E10:E19) -> 0 | G20: =SUM(G10:G19) -> 0 | H20: =SUM(H10:H19) -> 0 | J20: =SUM(J10:J19) -> 0 | K20: =SUM(K10:K19) -> 0 | M20: =SUM(M10:M19) -> 0 | N20: =SUM(N10:N19) -> 0
A28: Input Prepared By:_________ | H28: Reviewed By:___________
A29: Date:________ | H29: Date:________

Sheet R
A1: Back to Index
A2: =B!A2 -> PQR Pvt. Ltd.
A3: =B!A3 -> A.Y: 2024 - 25
A4: Annexure 'R' of Form 3CD
A5: [Refer Clause No. 40 of Form 3 CD]
A7: Calculation of various Ratios
D8: Amount (Rs.)
A9: Sl | B9: Particulars | C9: FY 2023-24 | D9: FY 2022-23
B11: Gross Profit | C11: 0 | D11: 0
B13: Turnover | C13: 0 | D13: 0
A15: a | B15: Gross Profit/Turnover | C15: =(C11/C13) ->  | D15: =(D11/D13) -> 
B17: Net Profit | C17: 0 | D17: 0
B19: Turnover | C19: =C13 -> 0 | D19: =D13 -> 0
A21: b | B21: Net Profit/Turnover | C21: =C17/C19 ->  | D21: =D17/D19 -> 
B23: Closing Stock of Raw Materials and Finished Goods | C23: 0 | D23: 0
B25: Turnover | C25: =C19 -> 0 | D25: =D19 -> 0
A27: c | B27: Stock in Trade/Turnover | C27: =C23/C25 ->  | D27: =D23/D25 -> 
B29: Material Consumed (in Kg Fats) | C29: 0 | D29: 0
B31: Finished Goods Produced (in Kg Fats) | C31: 0 | D31: 0
A33: d | B33: Material Consumed / Finished Goods Produced | C33: =+C29/C31 ->  | D33: =+D29/D31 -> 
A40: Input Prepared By:_________ | C40: Reviewed By:___________
A41: Date:________ | C41: Date:________

Sheet S
A1: Back to Index
A2: =B!A2 -> PQR Pvt. Ltd.
A3: =B!A3 -> A.Y: 2024 - 25
A4: Annexure 'S' of Form 3CD
A5: [Refer Clause No. 44 of Form 3 CD]
A7: Particulars | B7: Expenditure in respect of entities registered under GST Supplies exempt from GST | C7: Expenditure in respect of entities registered under GST Entities under composite scheme | D7: Expenditure in respect of entities registered under GST Others | E7: Expenditure in respect of entities registered under GST Total | F7: Expenditure in respect of entities not registered under GST | G7: Total expenditure
E8: =SUM(B8:D8) -> 0 | F8: 0 | G8: =SUM(E8:F8) -> 0
E9: =SUM(B9:D9) -> 0 | F9: 0 | G9: =SUM(E9:F9) -> 0
E10: 0 | F10: 0 | G10: 0
E11: 0 | F11: 0 | G11: 0
E12: 0 | F12: 0 | G12: 0
E13: 0 | F13: 0 | G13: 0
E14: 0 | F14: 0 | G14: 0
E15: 0 | F15: 0 | G15: 0
E16: 0 | F16: 0 | G16: 0
E17: 0 | F17: 0 | G17: 0
E18: 0 | F18: 0 | G18: 0
E19: 0 | F19: 0 | G19: 0
E20: 0 | F20: 0 | G20: 0
E21: 0 | F21: 0 | G21: 0
E22: 0 | F22: 0 | G22: 0
A27: Input Prepared By:_________ | E27: Reviewed By:___________
A28: Date:________ | E28: Date:________

Sheet Final TB
A1: Back to Index
A2: =B!A2 -> PQR Pvt. Ltd.
A3: =B!A3 -> A.Y: 2024 - 25
A4: Trial Balance as on 31st March 2024
A6: Branches | B6: Particulars | C6: Balance Sheet Grouping | D6: Accounting Software Grouping | E6: BS/PL | F6: Closing Balance

Sheet Extent of Checking (hidden)
A1: ='Data Entry'!C5 -> ABC & Co., Chartered Accountants
A3: Extent of Checking Sheet
A5: ="Name of the Client : "&'Data Entry'!C10 -> Name of the Client : PQR Pvt. Ltd.
A7: ="Audit for Financial Year "&'Data Entry'!C18 -> Audit for Financial Year 2023 - 24
A10: Area of Audit:
A43: Signed by:
A45: (Articled Assistant)
A47: Date:

Sheet Ob. Sheet
A1: Back to Index
A2: ='Data Entry'!C5 -> ABC & Co., Chartered Accountants
A3: Audit Observation Sheet
A4: ="Name of the Client : "&'Data Entry'!C10 -> Name of the Client : PQR Pvt. Ltd.
A5: ="Audit for Financial Year "&'Data Entry'!C18 -> Audit for Financial Year 2023 - 24
A6: Audit Period : 01/04/2023 to 31/03/2024
A8: Areas of audit :
A11: Observations:
A40: Documents Perused:
A47: Signed by: | B47: Signed by:
A48: (Articled Assistant) | B48: (Client officer)
A50: Date :

Sheet Query Sheet
A1: Back to Index
A2: ='Data Entry'!C5 -> ABC & Co., Chartered Accountants | D2: ='Data Entry'!B18&": - "&'Data Entry'!C18 -> Financial Year: - 2023 - 24 | F2: Query Sheet No.: -
A4: Client: | B4: ='Data Entry'!C10 -> PQR Pvt. Ltd. | E4: Period: | F4: Area:
A6: Voucher No. & Date | B6: Head of Account | C6: Amt. Rs. (In Books) | D6: Name of the Party | E6: Observations | F6: Action / Management Response
A26: Audit Officer - | C26: Officer-In-Charge | D26: Client's Officer - | F26: Reviewed By -
A27: Name & Sign : | D27: Name & Sign : | F27: Name & Sign
A28: Date : | D28: Date : | F28: Date :

Sheet Cash Docket
A1: Back to Index
A2: ='Data Entry'!C5 -> ABC & Co., Chartered Accountants
A3: Cash Verification Docket
A4: As on __________
A6: Client: | B6: ='Data Entry'!C10 -> PQR Pvt. Ltd.
A7: F. Y. : | B7: ='Data Entry'!C18 -> 2023 - 24
A9: SI | B9: Denomination | C9: Quantity | D9: Amount
A10: Notes
A11: 1 | B11: 500 | C11: 0 | D11: =C11*B11 -> 0
A12: =A11+1 -> 2 | B12: 200 | C12: 0 | D12: =C12*B12 -> 0
A13: =A12+1 -> 3 | B13: 100 | C13: 0 | D13: 0
A14: 4 | B14: 50 | C14: 0 | D14: 0
A15: 5 | B15: 20 | C15: 0 | D15: 0
A16: 6 | B16: 10 | C16: 0 | D16: 0
A17: 7 | B17: 5 | C17: 0 | D17: 0
A18: Sub-Total | D18: =SUM(D11:D17) -> 0
A19: Coins
A20: =A17+1 -> 8 | B20: 20 | C20: 0 | D20: =B20*C20 -> 0
A21: =A20+1 -> 9 | B21: 10 | C21: 0 | D21: =B21*C21 -> 0
A22: =A21+1 -> 10 | B22: 5 | C22: 0 | D22: 0
A23: =A22+1 -> 11 | B23: 2 | C23: 0 | D23: 0
A24: 12 | B24: 1 | C24: 0 | D24: 0
A25: Sub-Total | D25: =SUM(D20:D24) -> 0
A26: Total as per Verification | D26: =D18+D25 -> 0
A27: Total as Books | D27: 0
A28: Difference | D28: =D26-D27 -> 0
A32: Verified By:
A33: ABC | D33: XYZ
A34: (Articled Assistant) | D34: (Cashier)
A36: Date:
A37: Place:

Sheet Stock Report
B1: Back to Index
B3: ='Appointment Letter'!B3 -> PQR Pvt. Ltd.
B4: ='Appointment Letter'!B4 -> 10th Floor, Vincent Tower, F.C. Road, Shivajinagar, Pune - 411016, Maharashtra, India.
B7: Date:
B9: To,
B10: ='Appointment Letter'!B8 -> ABC & Co., Chartered Accountants
B11: ='Appointment Letter'!B9 -> 264, Parmar Chowk, Shukrawar Peth, Pune - 411002, Maharashtra, India.
B14: Subject: Submission of Inventory Verification Report as on 31st March 2024.
B17: Dear Sir/ Ma'am,
B19: We are pleased to submit you the Stock Verification Report conducted at following premises / locations of [Client's Name] as on 31st March, 2024:
B22: =1&"." -> 1. | C22: Premises / Locations Name
B23: =B22+1&"." -> 2. | C23: Premises / Locations Name
B24: =B23+1&"." -> 3. | C24: Premises / Locations Name
B25: =B24+1&"." -> 4. | C25: Premises / Locations Name
B27: Our representatives were present on following scheduled dates on the below mentioned premises for the purpose of Physical Verification of Stock:
B30: Sr. No. | C30: Date of Visit | D30: Location | G30: Name of the Company | J30: Category of Stock Verified | L30: % of Inventory Verified
B31: 1
B32: 2
B33: 3
B34: 4
B35: 5
B43: A. | C43: Executive Summary:
B45: Sr. No. | C45: Particulars | H45: Excess | J45: Shortage | L45: Net Discrepancy
B46: 1 | H46: 0 | J46: 0 | L46: =J46-K46 -> 0
B47: 2 | H47: 0 | J47: 0 | L47: =J47-K47 -> 0
B48: 3 | H48: 0 | J48: 0 | L48: 0
B49: 4 | H49: 0 | J49: 0 | L49: 0
B50: 5 | H50: 0 | J50: 0 | L50: 0
B52: Notes:
B54: • | C54: *[If any additional note to be given for the above figures.]
B56: • | C56: **[If any additional note to be given for the above figures.]
B59: B. | C59: Purpose of the Physical Verification of Inventories:
B61: =1&"." -> 1. | C61: Internal Controls Effectiveness - To assess the effectiveness of the internal controls implemented at the [Inventory Storage Premises and Location] wherein the inventory of [Inventory Type 1, Inventory Type 2 and, ...] is being maintained and identifying areas for improvement.
B65: =B61+1&"." -> 2. | C65: Accuracy of Records - Evaluating the accuracy of records of the vehicles and/ or spares/ accessories and ensuring that inventory is being properly managed and controlled.
B68: =B65+1&"." -> 3. | C68: Safety & Security - Evaluating the safety and security of the inventories maintained at all the locations of the organization, including the storage of hazardous materials, if any.
B71: =B68+1&"." -> 4. | C71: Qualified & Efficient Personnel - Measuring the performance of the personnel responsible for maintaining the records of the inventory as well as physical inventories and assessing the knowledge they have about the inventory items.
B76: C. | C76: Audit procedure followed:
B78: a. | C78: Inventory Type:
B80: =1&"." -> 1. | C80: The Physical inventory of [Inventory Type] at all the locations, viz. At [Premises / Location name mentioned above] were physically verified and counted on 100% basis.
B84: =B80+1&"." -> 2. | C84: Physical Verification at [Premises / Location name] was carried out on 31.03.2024 during the ______________ session and it was relating to closing stock of 31st March 2024.
B88: =B84+1&"." -> 3. | C88: The stock so verified was compared with the quantity of stock present in the system as on the date of physical verification.
B91: =B88+1&"." -> 4. | C91: Shortage and excess quantities of stock were derived after comparing the stock as per [Client's stock system] and stock which was present physically.
B94: =B91+1&"." -> 5. | C94: Insurance copy of stock insured as on 31st March 2024 was also taken on record so as to ensure that all the stock is duly covered with insurance.
B97: =B94+1&"." -> 6. | C97: Sanction letter from the bank for the loan against which stock is hypothecated was also taken on record for verification purposes.
B100: =B97+1&"." -> 7. | C100: Latest copy of stock statement submitted to the bank (February 2024 or Immediate preceding one) was / was not provided at the time of physical verification of stock.
B103: =B100+1&"." -> 8. | C103: Photo copies of the Security register for inward and outward movement of stock as on 31st March 2024 and supportive gate passes & sale invoices for stock delivered as on 31st March 2024 were also taken on record.
B107: Team for Physical Verification of [Inventory Type]:
C109: Sr. No. | D109: Category of Stock | G109: Location | I109: ="Team "&'Data Entry'!$C$10 -> Team PQR Pvt. Ltd. | K109: ="Team "&'Data Entry'!$C$5 -> Team ABC & Co., Chartered Accountants
C110: 1
C111: 2
C112: 3
C113: 4
B116: b. | C116: Inventory Type:
B118: =1&"." -> 1. | C118: The Physical inventory of [Inventory Type] at all the locations, viz. At [Premises / Location name mentioned above] were physically verified and counted on 100% basis.
B122: =B118+1&"." -> 2. | C122: Physical Verification at [Premises / Location name] was carried out on 31.03.2024 during the ______________ session and it was relating to closing stock of 31st March 2024.
B126: =B122+1&"." -> 3. | C126: The stock so verified was compared with the quantity of stock present in the system as on the date of physical verification.
B129: =B126+1&"." -> 4. | C129: Shortage and excess quantities of stock were derived after comparing the stock as per [Client's stock system] and stock which was present physically.
B132: =B129+1&"." -> 5. | C132: Insurance copy of stock insured as on 31st March 2024 was also taken on record so as to ensure that all the stock is duly covered with insurance.
B135: =B132+1&"." -> 6. | C135: Sanction letter from the bank for the loan against which stock is hypothecated was also taken on record for verification purposes.
B138: =B135+1&"." -> 7. | C138: Latest copy of stock statement submitted to the bank (February 2024 or Immediate preceding one) was / was not provided at the time of physical verification of stock.
B141: =B138+1&"." -> 8. | C141: Photo copies of the Security register for inward and outward movement of stock as on 31st March 2024 and supportive gate passes & sale invoices for stock delivered as on 31st March 2024 were also taken on record.
B145: Team for Physical Verification of [Inventory Type]:
C147: Sr. No. | D147: Category of Stock | G147: Location | I147: ="Team "&'Data Entry'!$C$10 -> Team PQR Pvt. Ltd. | K147: ="Team "&'Data Entry'!$C$5 -> Team ABC & Co., Chartered Accountants
C148: 1
C149: =C148+1 -> 2
C150: =C149+1 -> 3
C151: =C150+1 -> 4
B154: D. | C154: Following are the details of the discrepancies noticed:
B156: Sr. No. | C156: Inventory Type | D156: Particulars | F156: Count as per Physical Verification | H156: Count as per accounting software | K156: Count as per inventory System (if any)
H157: Total | I157: Excess | J157: Short | K157: Total | L157: Excess | M157: Short
B158: =1 -> 1
B159: =B158+1 -> 2
B160: =B159+1 -> 3
B161: 4
B162: 5
B163: 6
B165: Notes:
B167: • | C167: *[If any additional note to be given for the above figures.]
B169: • | C169: **[If any additional note to be given for the above figures.]
B172: E. | C172: Suggestions:
B174: =1&"." -> 1. | C174: During the Verification we came across numbers of Non-Moving / Dead Stock inventory parts stored along with usable inventories. We suggest that, separating of such non-moving / dead inventory parts from the one in use by either storing it separately or by discarding it completely.
B178: =B174+1&"." -> 2. | C178: To ensure precise inventory records, it is essential to implement regular cycle counts that provide ongoing verification of stock levels. This proactive approach helps to identify discrepancies early, allowing for timely corrections. Strengthening reconciliation procedures between physical counts and system records will also minimize the risk of errors, ensuring that the inventory data reflects the actual stock on hand.
B187: =B178+1&"." -> 3. | C187: Effective stock management is crucial for maintaining an optimal balance between supply and demand. By reviewing and optimizing inventory levels based on historical sales data, demand forecasts, and supplier lead times, the company can reduce the risk of both excess stock and stockouts. Additionally, consistently applying FIFO (First-In, First-Out) or LIFO (Last-In, First-Out) methods ensures that older stock is used or sold first, which is vital for maintaining the quality and usability of inventory, particularly for perishable or time-sensitive goods.
B194: =B187+1&"." -> 4. | C194: For the inventories of the consumable items, it was observed that no specific measurement system was available to count the inventory of the consumables. As a result, the stock of the consumable such as ____________________ etc. was taken on the basis of assumptions and tentative calculations with the help of the personnel available at the service centre.
B211: ="For "&'Data Entry'!C5&"," -> For ABC & Co., Chartered Accountants,
B212: ='Data Entry'!B7&" "&'Data Entry'!C7 -> Firm Registration No. 0111111W
B216: ='Data Entry'!C8 -> CA Abhishek Dhamne
B217: ="("&'Data Entry'!B8&")" -> (Partner)
B218: ="M. No. "&'Data Entry'!C9 -> M. No. 012345

Sheet Cut-Off Procedure
A1: Back to Index
A2: ='Data Entry'!C5 -> ABC & Co., Chartered Accountants
A3: Audit Cut-Off Procedure
A6: SI | B6: Particulars | D6: Inputs | F6: Value
A7: a) | B7: Cut - Off Date;
A8: b) | B8: Total number of transaction on Cut-Off date;
A9: c) | B9: Transaction Selected for the Cut-Off Procedure;
A11: ='Data Entry'!C10 -> PQR Pvt. Ltd.
A12: ="A.Y: "&'Data Entry'!C19 -> A.Y: 2024 - 25
A14: SI | B14: Audit Area | C14: Particulars of Transaction | D14: Date of Transaction | E14: Amount in Rs. | F14: Accounting Treatment | G14: Whether related to current audit period? | H14: Auditor's Remark | I14: Management Response
A15: 1
A16: =A15+1 -> 2
A17: =A16+1 -> 3
A18: 4
A19: 5
A20: 6
A21: 7
A22: 8
A23: 9
A24: 10
A25: 11
A26: 12
A27: 13
A28: 14
A29: 15
A38: Input Prepared By:_________ | G38: Reviewed By:___________
A39: Date:________ | G39: Date:________

Sheet DSC Authority Letter
B1: Back to Index
B3: ='Appointment Letter'!B3 -> PQR Pvt. Ltd.
B4: ='Appointment Letter'!B4 -> 10th Floor, Vincent Tower, F.C. Road, Shivajinagar, Pune - 411016, Maharashtra, India.
B7: Date:
B9: To,
B10: ='Appointment Letter'!B8 -> ABC & Co., Chartered Accountants
B11: ='Appointment Letter'!B9 -> 264, Parmar Chowk, Shukrawar Peth, Pune - 411002, Maharashtra, India.
B14: Subject: - Authorization to obtain and use Digital Signature Certificate (DSC)
B17: Dear Sir/Ma'am,
B19: With reference to the above subject, I Mr/Mrs. [Name of Designated Person] , s/o / d/o / h/o / w/o Mr/Mrs. [Name of the related Person of designated person] having PAN as _____________ and having my (Sole proprietary / Company / Partnership Firm / LLP) business at the above mentioned address in the name and as required under various laws of India, including, but not limited to, the Income Tax Act,1961, The Integrated Goods And Service Tax Act,2017, The Central Goods And Services Tax Act,2017, The Maharashtra State Goods And Services Act,2017, and others. A Director / Partner / Proprietor of [Client's Name] may be required to verify and authenticate various documents, returns, forms, etc.
B29: For the same purposes, I hereby irrevocably authorize [Name of the Auditor / Auditor Firm], Chartered Accountants, to obtain and use, wherever required, my Digital Signature Certificate (DSC), in my capacity as (Director / Partner / Proprietor) of [Client's Name], under all the laws in India, and the same will be binding on me at all times.
B35: Thanking You
B37: Yours Faithfully,
B39: ="For "&'Data Entry'!C10&"," -> For PQR Pvt. Ltd.,
B43: ='Appointment Letter'!B40 -> Sanjay Veer Kashyap
B44: ='Appointment Letter'!B41 -> (Director)

Sheet MRL
B1: Back to Index
B3: ='Appointment Letter'!B3 -> PQR Pvt. Ltd.
B4: ='Appointment Letter'!B4 -> 10th Floor, Vincent Tower, F.C. Road, Shivajinagar, Pune - 411016, Maharashtra, India.
B7: Date:
B9: ='DSC Authority Letter'!B9 -> To,
B10: ='Appointment Letter'!B8 -> ABC & Co., Chartered Accountants
B11: ='Appointment Letter'!B9 -> 264, Parmar Chowk, Shukrawar Peth, Pune - 411002, Maharashtra, India.
B14: Dear Sir/Ma'am,
B16: We are required to get our audit done u/s 44AB of the Income Tax Act, 1961. We have prepared the information to be disclosed in Form 3CD (including Annexure No. x to xx there of) and submitted for the purpose of audit. With reference to the Financial statements of the entity for the year ended March 31, 2024 as submitted to you for the purpose of audit under section 44AB of the Income Tax Act, 1961, this representation letter is provided in connection with your Tax Audit of A.Y 2023-2024.
B23: We confirm, to the best of our knowledge and belief, the following representations:
B25: 1. Our Permanent Account Number (PAN) and Tax Deduction Account Number (TAN) is [PAN] and [TAN] respectively. We do not hold any other PAN or TAN.
B28: 2. We have not opted for taxation u/s 115BAA of the Act "OR" We hereby confirm that for the AY 2023-2024 the company has decided to opt for taxation under section 115BAA of the Income Tax Act 1961.
B32: 3. There is no change in the nature of business since the last date of the preceding year.
B34: 4. Registration number or identification numbers, allotted to pay indirect taxes up to March 31, 2024 have been disclosed in clause 4/Annexure 1 of Form 3CD. "OR" Registration number or identification numbers, allotted to pay indirect taxes up to March 31, 2024 are as follows:
B38: SI | C38: Name of the duty/tax | G38: Registration number / Identification No.
B41: We confirm that we are not registered under any law other than mentioned above.
B43: 5. We are liable to pay indirect taxes to the extent specified in Clause 4 of Form 3CD. We have taken registration under the required indirect tax laws and the registration/ identification numbers are mentioned under that Clause.
B45: 6. We have maintained the books of accounts in respect of each of its business locations and kept at registered office/administrative office as shown in Form 3CD under Clause 11(b).
B47: 7. There is no change in the method of accounting employed during current previous year as compared to that prevalent in the immediately preceding previous year.
B49: 8. There is no effect on the profit of the company in view of applicability of provision of Income Tax Computation and Disclosure standards except the adjustments reported in clause 13(e) of Form No. 3CD which has effect on the profit of the Company.
B51: 9. The information disclosed in clause 13(f) of Form No.3CD is in accordance with applicable Income Tax Computation and Disclosure Standard and it is true and correct.
B53: 10. There is no deviation in the method of accounting employed in the previous year from the accounting standards prescribed under section 145 of Income Tax Act, 1961 except as mentioned in Clause 14(b) of Form 3CD.
B55: 11. There is no deviation in the method of valuation of Closing Stock as prescribed under section 145A other than mentioned in Clause 14.
B57: 12. Amount reported under Clause 14(b) of Form 3CD is true and correct.
B59: 13. No capital asset has been converted into Stock-in-trade during the year.
B61: 14. We have not received / earned any amount, which is not credited to profit & loss account relating to following items:
B62: a) Items falling within the scope of section 28.
B63: b)The Proforma credits, drawbacks, refund of duty of customs or excise or refund of sales tax, where such credits, refunds or drawbacks are due by the authorities concerned.
B64: c) Escalation claims accepted during the previous year.
B65: d) Any other item of income.
B66: e) Capital Receipts.
B68: 15. No personal expenditure has been debited to Statement of Profit & Loss/Profit and Loss Account. Further, it is confirmed that charging of any expenses to the Statement of Profit & Loss/Profit and Loss Account is either on the basis of contractual obligation or in accordance with the generally accepted business practices and all expenses are incurred wholly and exclusively for the purpose of business and they are not in the nature of personal expenditure.
B70: 16. The details of fixed asset and depreciation thereon as given in clause 18 of Form 3CD are correct.
B72: 17. The amount of cost of acquisition stated in fixed assets addition schedule at Clause-18(b) of Form 3CD has been shown net of CENVAT / GST credit where credit is availed, while cost of acquisition is shown including taxes where credit of same is not availed. No adjustment to the cost of acquisition is required on account of exchange fluctuation, subsidy, grant except those made while computing tax depreciation under the said clause.
B74: 18. No amount has been paid to an employee as bonus or commission for services rendered, where such sum was otherwise payable to him as profits or dividend.
B76: 19. The entity confirms that the Capital work in progress, as visible in the financial statements of the year under consideration, will be put to use within a period of less than 1 year and therefore no interest relating to General purpose borrowing is required to be capitalized as per applicable ICDS.
B78: 20. No other contributions were received from employees except those which are mentioned in clause 20(b) of Form 3CD. The relevant details mentioned at the said clause are true and correct.
B80: 21. We have not debited any expenditure of capital and/ or personal nature to the profit and loss Account except as disclosed in clause 21(a) of Form 3CD.
B82: 22. No expenditure has been incurred on advertisement in any souvenir, brochure, tract, pamphlet or the like published by a political party.
B84: 23. No expenditure has been incurred at clubs being cost for club services and facilities used except as disclosed in clause 21(a) of Form 3CD.
B86: 24. Expenditure has been incurred during the year by way of -
B87: a) Penalty or fine has incurred for violation of any law for the time being in force are as follows.
B88: Penalty on ...... - Rs. .....
B90: b) Any other fine or penalty which is not covered in point a)
B91: c) For any purpose which is an offence, or which is prohibited by law,
B92: except as mentioned in clause 21(a) of Form 3CD.
B94: 25. No amount is inadmissible under section 40 of the Income Tax Act, 1961 except as shown in 21(a) /(b) of Form 3CD.
B96: 26. All payments relating to expenditure covered u/s 40A(3) of the Act read with Rule 6DD, were made either by account payee cheque drawn on a bank or by account payee bank drafts. No payment has been made in excess of Rs.10,000/- to persons other than transporters in cash or other than account payee cheques on a bank or other than account payee bank draft in contravention of Section 40A(3) read with rule 6DD of the Income tax Act, 1961 except as shown in clause 21(d)(A) of Form 3CD. "OR" No payment has been made in excess of Rs.10,000/- to persons other than transporters and Rs.35,000/- to transporters in cash or other than account payee cheques on a bank or other than account payee bank draft in contravention of Section 40A(3) read with rule 6DD of the Income tax Act, 1961 except as shown in clause 21(d)(A) of Form 3CD.
B98: 27. No sum has been paid which is not allowable under section 40A(9) of the Income Tax Act, 1961 .
B100: 28. No contingent liability has been debited to profit & loss account except as mentioned in clause 21(g) of Form 3CD.
B102: 29. No amount is inadmissible under the proviso to section 36(1)(iii) except as mentioned in clause 21(i) of Form 3CD.
B104: 30. As mentioned in the audited account, the amount outstanding to Micro, Small and Medium Enterprises is based upon the information received and available with the Company. Further we hereby confirm that the Company has not paid any interest under section 23 of the Micro, Small and Medium Enterprises Development Act, 2006 except as mentioned in clause 22 of Form 3CD.
B106: 31. There is no related party under section 40A(2)(b) except as reported in Clause 23 of Form 3CD.
B108: 32. No payment has been made to persons specified under section 40A(2)(b) except as mentioned in clause 23 of Form 3CD. All payments made to person(s) u/s 40A(2)(b) have been disclosed under the said clause.
B110: 33. No amount is deemed to be profit and gains under section 32AC or 33AB or 33ABA or 33AC except mentioned in clause 24 of Form 3CD.
B112: 34. No amount of profit is chargeable to tax under section 41 of the Income Tax Act, 1961 except mentioned in clause 25 of Form 3CD. Further amount mentioned in clause 25 is already credited to profit and loss account and hence offered to tax.
B114: 35. There is no liability which pre-existed in the previous year but not allowed as deduction under section 43B(a),(b),(c),(d),(e),(f) and (g) as referred to in the preceding assessment year except as mentioned in clause 26(A) of Form 3CD.
B116: 36. The amount as disclosed (in respect of any sum referred to in Section 43B(a),(b),(c),(d),(e),(f) and (g) as referred to has been paid on or before the due date except as mentioned in clause 26(B) of Form 3CD.
B118: 37. Amount of Central Value Added Tax / Input tax credit/ Goods and Service Tax Credit availed of or utilized of as mentioned in clause 27(a) of Form 3CD is true and correct.
B120: 38. There is no amount credited or debited to the profit and loss account as prior period Income/ Expenditure except as mentioned in clause 27(b) of Form 3CD.
B122: 39. No amount of money received as advance or otherwise in the course of negotiations for transfer of capital assets as per Section 56(2)(ix). Hence no disclosure is required in Clause 29(A) of Form 3CD.
B124: 40. No sum of money received without consideration exceeding the limit as mentioned in Section 56(2)(x). Hence no disclosure is required in Clause 29(B) of Form 3CD. "OR" We have executed sale deed for purchase of land at located ..... bearing Survey no. ..... We hereby confirm that the same has been executed at a value higher than the stamp value of the said lands.
B126: 41. No amount has been borrowed on hundi nor is any amount due thereon as mentioned in clause 30 of Form 3CD.
B128: 42. No primary adjustments to transfer price has been made during the previous year as referred in Section 92CE(1) of Income Tax Act,1961.
B130: 43. No expenditure has incurred during the previous year by way of interest or of similar nature exceeding one crore rupees as referred to in sub-section (1) of Section 94B of Income Tax Act,1961.
B132: 44. We have not accepted or repaid any Loan/ Deposits except as mentioned in clause 31(a) of Form 3CD.
B134: 45. We have not received any amount exceeding the limit specified in section 269ST, in aggregate from a person in a day or in respect of a single transaction or in respect of transactions relating to one event or occasion from a person, during the previous year, otherwise than by a cheque or bank draft or use of electronic clearing system through a bank account. Hence no disclosure is required in Clause 31(ba) of Form 3CD.
B136: 46. We have not received any amount exceeding the limit specified in section 269ST, in aggregate from a person in a day or in respect of a single transaction or in respect of transactions relating to one event or occasion from a person, by a cheque or bank draft, not being an account payee cheque or an account payee bank draft, during the previous year. Hence no disclosure is required in Clause 31(bb) of Form 3CD.
B138: 47. We have not made any payments exceeding the limit specified in section 269ST, in aggregate to a person in a day or in respect of a single transaction or in respect of transactions relating to one event or occasion to a person, otherwise than by a cheque or bank draft or use of electronic clearing system through a bank account during the previous year. Hence no disclosure is required in Clause 31(bc) of Form 3CD.
B140: 48. We have not made any payments exceeding the limit specified in section 269ST, in aggregate to a person in a day or in respect of a single transaction or in respect of transactions relating to one event or occasion to a person, by a cheque or bank draft, not being an account payee cheque or an account payee bank draft, during the previous year. Hence no disclosure is required in Clause 31(bd) of Form 3CD.
B142: 49. The entity has not accepted any loan/deposit otherwise than by an account payee cheques or by account payee bank draft or use of electronic clearing system through a bank account.
B144: 50. There is no brought forward or deprecation allowance from the previous years. Hence, no disclosure is required in Clause32(a) of Form 3CD.
B146: 51. The entity has not entered into any speculative transactions, hence there is no speculation loss referred to in Section 73 has been incurred except mentioned in clause 32(c) of Form 3CD.
B148: 52. No loss had been incurred referred to in section 73A in respect of any specified business u/s 35AD as mentioned in clause 32(d) of Form 3CD.
B150: 53. There are no deductions which are admissible under chapter VIA or Chapter III (Section 10A, 10AA) except as mentioned in clause 33 of the Form 3CD. The stated amounts are admissible as per the provision of the Income Tax Act, 1961 and fulfils the conditions, if any, specified under the relevant provisions of Income Tax Act, 1961 or Income Tax Rules, 1962 or any other guidelines, circular, etc, issued in this behalf.
B152: 54. We have complied with the provisions of Chapter XVIIB or Chapter XVII-BB of the Income Tax Act as under:
B153: a) We have disclosed all the payments made on which the provisions of Chapter XVIIB (TDS) are applicable under clause 34(a).
B154: b) The amount reported column (4) of Table of Clause No.34(a) are true and correct as per the information available with the Company.
B155: c) Tax has been deducted/collected at source on all expenditure/payment/receipt in accordance with the provision of the Act and payment thereof has been made within the time allowed as per applicable income tax rule except as mentioned under clause 21 and clause 34.
B156: d) We have submitted the Statements of TDS on the due dates prescribed under the income Tax act except as mentioned under clause 34(b) of Form 3CD.
B157: e) The statement of tax deducted/collected returns contains information about all transactions which are required to be reported in the said returns except as stated under clause 34(b) of Form 3CD.
B158: f) The calculation of interest on TDS under clause 34(c) is correct and it has been provided in the books and paid before the finalization of the tax Audit except as stated in the said clause.
B159: g) The company has shown the details of all transactions in the TDS/TCS returns except as otherwise stated under clause 34(c).
B160: h) During the year, the assessee has received certificates from XX payees wherein the tax department has granted lower deduction on payment to be made to such payee as per the certificate. Out of such XX parties, the company has entered into transactions with XX parties regarding which necessary disclosure in respect of the payment made to XX parties has been made along with certificate number while filing the TDS return. Whereas disclosure while making payment to XX party has not been made in the TDS returns.
B162: 55.During the year the entity given advances to employees for incurring expenditure on behalf of the company and the same is not in the nature of personal loan given to the employees. Accordingly, no perquisite relating to interest is applicable on these transactions for TDS u/s 192 of the Act.
B164: 56. Disclosure requirement of quantitative details of principal items of goods traded under trading concern in clause 35 (a) of Form 3CD is true and correct.
B166: 57. The quantitative details of principal items of goods manufacturing concern disclosed in clause 35 (b) of Form 3CD are correct and to be considered as certified by the management.
B168: 58. The entity has not created any trust for the benefit of the employees.
B170: 59. Tax on perquisites is not borne by the entity in terms of provision of section 192(1A) read with section 10(10CC) of the Act.
B172: 60. No Cost Audit is carried out during the Financial Year 2023-2024.
B174: 61. During the year Excise audit has been carried out for the period XX to XX. As per report dated XX there are no disqualification or disagreement identified by the auditor. "OR" No Audit under Excise, Service Tax and VAT has been carried out during the year Financial Year 2023-2024.
B176: 62. During the year under consideration no audit was conducted under section 72A of the Finance Act,1994 in relation to valuation of taxable services.
B178: 63. The Company was not required to file Form 61, Form 61A or Form 61B for the period.
B180: 64. Details regarding turnover, gross profit, etc. for the previous year and preceding previous year mentioned in clause 40 are true and correct.
B182: 65. No demand was raised on us or any refund was issued to us during the previous year under any laws other than Income-tax Act, 1961 and Wealth Tax Act, 1957 except as reported under clause 41.
B184: 66. During the year under consideration the company is not liable to furnish the report as referred to in sub-section(2) of section 286.
B186: 67. It is not practicable/feasible to bifurcate total expenditure under various heads and compile the other information required under this clause in view of huge number of transactions with different parties. Hence, we are unable to furnish the details required for reporting under this clause 44 of Form 3CD.
B188: 68. The information furnished in Form 3CD and signed by us is true and correct to the best of our knowledge, information and belief.
B191: ='DSC Authority Letter'!B39 -> For PQR Pvt. Ltd.,
B195: ='DSC Authority Letter'!B43 -> Sanjay Veer Kashyap
B196: ='DSC Authority Letter'!B44 -> (Director)
B221: Annexure I
B224: This is to certify that during the Financial year 2023-2024 loans taken/ accepted or repaid through an account payee cheques on a bank or account payee bank draft were in accordance with the provisions of Section 269SS and 269T of the Income Tax Act, 1961. No loan has been taken/ accepted or repaid in cash or other than account payee cheques on a bank or other than account payee bank draft in contravention of Section 269SS and 269T of the Income Tax Act, 1961 except as otherwise stated under clause 31.
B237: =B191 -> For PQR Pvt. Ltd.,
B241: =B195 -> Sanjay Veer Kashyap
B242: =B196 -> (Director)
B267: Annexure II
B270: This is to certify that physical verification of stock of raw material for the financial year 2023-24 has been carried out during the year under consideration.
B273: As per stock records maintained by the company and considering such physical verification of raw material, the principal item of raw materials constituting 10% or more of the total purchase value of raw materials is certified as under:
B277: Item Name | D277: Unit | E277: Opening Stock | F277: Purchases during the previous Year | G277: Consumption during the previous year | H277: Sales during the previous Year | I277: Closing Stock
B293: =B237 -> For PQR Pvt. Ltd.,
B297: =B241 -> Sanjay Veer Kashyap
B298: =B242 -> (Director)
B308: Annexure III
B311: This is to certify that physical verification of stock of finished goods for the financial year 2023-2024 was carried out during the year.
B314: As per the stock records maintained by the company and considering such physical stock verification, we certify the movement of finished goods under:
B317: Item Name | D317: Unit | E317: Opening Stock | F317: Purchases during the previous Year | G317: Quantities manufactured during the previous year | H317: Sales during the previous Year | I317: Closing Stock
B333: =B293 -> For PQR Pvt. Ltd.,
B337: =B297 -> Sanjay Veer Kashyap
B338: =B298 -> (Director)
B348: Annexure IV
B351: This is to certify that physical verification of stock of traded goods for the financial year 2023-2024 was carried out during the year.
B354: As per the stock records maintained by the company and considering such physical stock verification, we certify the movement of traded goods under:
B357: Item Name | E357: Unit | F357: Opening Stock | G357: Purchases during the previous Year | H357: Sales during the previous Year | I357: Closing Stock
B375: =B333 -> For PQR Pvt. Ltd.,
B379: =B337 -> Sanjay Veer Kashyap
B380: =B338 -> (Director)
B390: Annexure V
B393: I/ We, hereby confirm that the Cash Balance as on 31st March, 2024 in our books of accounts is Rs.___________/- (Amount in Words- Rs.___________).
B396: Physical Denomination of the aforementioned cash balance is as follows:
B398: Sr. No. | C398: Denomination | F398: No. | H398: Amount
B399: 1 | C399: 500 | H399: =C399*F399 -> 0
B400: =B399+1 -> 2 | C400: 200 | H400: =C400*F400 -> 0
B401: =B400+1 -> 3 | C401: 100 | H401: 0
B402: 4 | C402: 50 | H402: 0
B403: 5 | C403: 20 | H403: 0
B404: 6 | C404: 10 | H404: 0
B405: 7 | C405: 5 | H405: 0
B406: 8 | C406: Coins
B407: Total (in Rs.) | F407: =SUM(H399:I406) -> 0
B408: Total (in Words)
B411: I/ We, hereby certify that the above particulars and balance of cash as per physical verification held as on 31st March, 2024 are true and correct and the same balance is getting reflected in the books of accounts of the Company as on 31st March, 2024
B419: =B375 -> For PQR Pvt. Ltd.,
B423: =B379 -> Sanjay Veer Kashyap
B424: =B380 -> (Director)

Sheet UDIN & Upload
A1: Back to Index
A2: ='Cash Docket'!A2:D2 -> ABC & Co., Chartered Accountants
A3: UDIN Checklist
A4: ='Cut-Off Procedure'!A11 -> PQR Pvt. Ltd.
A6: Details for UDIN FY 2023-24
A7: Sr No | B7: Particulars | D7: Values/Figures
A8: 1 | B8: Membership Registration No. | D8: ='Data Entry'!C9 -> 012345
A9: 2 | B9: Members Name | D9: ='Data Entry'!C8 -> CA Abhishek Dhamne
A10: 3 | B10: E-Mail ID
A11: 4 | B11: PAN No
A12: 5 | B12: UDIN By | D12: Select
A13: 6 | B13: Firm Reg. No. | D13: ='Data Entry'!C7 -> 0111111W
A14: 7 | B14: Document Type | D14: GST and Tax Audit
A15: 8 | B15: Type of Audit | D15: Select
A16: 9 | B16: Assessment Year | D16: ='Data Entry'!C19 -> 2024 - 25
A17: 10 | B17: Date of Signing Report
A18: 11 | B18: Figures and Values to be Given
B19: Sr No | C19: Particulars | D19: Figures / Values
B20: 1 | C20: Total Turnover as per Form 3CD | D20: ='R'!C13 -> 0
B21: =B20+1 -> 2 | C21: Net Profit/Turnover (ratio) as per Form 3CD | D21: ='R'!C21 -> 
B22: 3 | C22: WDV of Fixed Assets | D22: =D!M20 -> 0
B23: 4 | C23: Assessment Year | D23: 2024-2025
B24: 5 | C24: PAN of the Assessee/ Auditee | D24: ='Data Entry'!C12 -> ABCDE1111F
A25: 12 | B25: Document Description
A26: 13 | B26: Remarks
A27: 14 | B27: Date of UDIN
A28: 15 | B28: UDIN
A29: 16 | B29: UDIN Generated By
A30: 17 | B30: Whether Form 3CA/CB and 3CD Uploaded?
A31: 18 | B31: Date of Uploading
A32: 19 | B32: Form 3CA/CB and 3CD Uploaded By
A33: 20 | B33: Whether UDIN Updated on E-filing Portal?
